Workbook

Sheet BD
A1: CODIGO_GIS | B1: CODIGO_SSPD | C1: CÓDIGO | D1: POTENCIA NOMINAL [kVA] | E1: TENSIÓN PRIMARIA [V] | F1: TENSIÓN SECUNDARIA [V] | G1: LONGITUD | H1: LATITUD | I1: CAPACIDAD MAXIMA A CONECTAR 50% POTENCIA NOMINAL [KVA] | J1: VALOR DE CAPACIDAD DISPONIBLE (CD) [KW] | K1: 50 % DEL PROMEDIO ANUAL DE LAS HORAS DE MÍNIMA DEMANDA DIARIA DE ENERGÍA REGISTRADAS PARA EL AÑO ANTERIOR AL DE SOLICITUD DE CONEXIÓN (50%PAHMD24H) [kWh] | L1: 50% DEL PROMEDIO ANUAL DE LAS HORAS DE MÍNIMA DEMANDA DIARIA DE ENERGÍA REGISTRADAS PARA EL AÑO ANTERIOR AL DE SOLICITUD DE CONEXIÓN EN LA FRANJA HORARIA COMPRENDIDA ENTRE 6 A.M. Y 6 P.M. (50%PAHMD12H) [kWh] | M1: SUMATORIA DE LA POTENCIA MÁXIMA DECLARADA DE LOS GD Y AGPE INSTALADOS EN EL MISMO CIRCUITO O TRANSFORMADOR, DE AUTOGENERACIÓN (SPMAXD) [kW] | O1: LA CANTIDAD TOTAL DE ENERGÍA EN UNA HORA QUE PUEDEN ENTREGAR TODOS LOS GD Y AGPE A LA RED, CONECTADOS AL MISMO CIRCUITO O TRANSFORMADOR DEL NIVEL DE TENSIÓN 1, CUYO SISTEMA DE PRODUCCIÓN DE ENERGÍA SEA DISTINTO AL COMPUESTO POR UN SISTEMA FOTOVOLTAICO SIN CAPACIDAD DE ALMACENAMIENTO (E24H) [kWh] | Q1: LA CANTIDAD TOTAL DE ENERGÍA EN UNA HORA QUE PUEDEN ENTREGAR TODOS LOS GD Y AGPE A LA RED, CONECTADOS AL MISMO CIRCUITO O TRANSFORMADOR DEL NIVEL DE TENSIÓN 1, CUYO SISTEMA DE PRODUCCIÓN DE ENERGÍA SEA EL COMPUESTO POR UN SISTEMA FOTOVOLTAICO SIN CAPACIDAD DE ALMACENAMIENTO (E12H) [kWh]
M2: VALOR [kW] | N2: PORCENTAJE | O2: VALOR [kWh] | P2: PORCENTAJE | Q2: VALOR [kWh] | R2: PORCENTAJE
A3: 123 | B3: 1234 | C3: 65031265 | D3: 75 | E3: 13200 | F3: 208 | G3: -76.59179673 | H3: 2.502670957 | I3: =D3*0.5 -> 37.5 | J3: =D3*0.5-M3 -> 37.5 | K3: =0.2*D3 -> 15 | L3: =0.2*D3 -> 15 | M3: =SUMIF(SOLICITUDES!$C$2:$C$1048576,BD!C3,SOLICITUDES!$I$2:$I$1048576) -> 0 | N3: =M3/D3 -> 0 | O3: =SUMIF(SOLICITUDES!$C$2:$C$1048576,BD!C3,SOLICITUDES!$J$2:$J$1048576) -> 0 | P3: =O3/(2*K3) -> 0 | Q3: =SUMIF(SOLICITUDES!$C$2:$C$1048576,BD!C3,SOLICITUDES!$K$2:$K$1048576) -> 0 | R3: =Q3/(2*L3) -> 0
C4: TBORRAR | D4: 150 | E4: 13200 | F4: 208 | G4: -76.59179706 | H4: 2.502588578 | I4: =D4*0.5 -> 75 | J4: =D4*0.5-M4 -> 75 | K4: =0.2*D4 -> 30 | L4: =0.2*D4 -> 30 | M4: =SUMIF(SOLICITUDES!$C$2:$C$1048576,BD!C4,SOLICITUDES!$I$2:$I$1048576) -> 0 | N4: 0 | O4: =SUMIF(SOLICITUDES!$C$2:$C$1048576,BD!C4,SOLICITUDES!$J$2:$J$1048576) -> 0 | P4: =O4/(2*K4) -> 0 | Q4: =SUMIF(SOLICITUDES!$C$2:$C$1048576,BD!C4,SOLICITUDES!$K$2:$K$1048576) -> 0 | R4: =Q4/(2*L4) -> 0
C5: ALPM0001 | D5: 75 | E5: 13200 | F5: 208 | G5: -76.59179783 | H5: 2.502512764 | I5: 37.5 | J5: 37.5 | K5: 15 | L5: 15 | M5: =SUMIF(SOLICITUDES!$C$2:$C$1048576,BD!C5,SOLICITUDES!$I$2:$I$1048576) -> 0 | N5: 0 | O5: =SUMIF(SOLICITUDES!$C$2:$C$1048576,BD!C5,SOLICITUDES!$J$2:$J$1048576) -> 0 | P5: 0 | Q5: =SUMIF(SOLICITUDES!$C$2:$C$1048576,BD!C5,SOLICITUDES!$K$2:$K$1048576) -> 0 | R5: 0
C6: T1000 | D6: 112.5 | E6: 13200 | F6: 208 | G6: -76.59179856 | H6: 2.502453763 | I6: 56.25 | J6: 56.25 | K6: 22.5 | L6: 22.5 | M6: =SUMIF(SOLICITUDES!$C$2:$C$1048576,BD!C6,SOLICITUDES!$I$2:$I$1048576) -> 0 | N6: 0 | O6: =SUMIF(SOLICITUDES!$C$2:$C$1048576,BD!C6,SOLICITUDES!$J$2:$J$1048576) -> 0 | P6: 0 | Q6: =SUMIF(SOLICITUDES!$C$2:$C$1048576,BD!C6,SOLICITUDES!$K$2:$K$1048576) -> 0 | R6: 0
C7: T30625 | D7: 75 | E7: 115000 | F7: 115 | G7: -76.59426505 | H7: 2.49990269 | I7: 37.5 | J7: 37.5 | K7: 15 | L7: 15 | M7: =SUMIF(SOLICITUDES!$C$2:$C$1048576,BD!C7,SOLICITUDES!$I$2:$I$1048576) -> 0 | N7: 0 | O7: =SUMIF(SOLICITUDES!$C$2:$C$1048576,BD!C7,SOLICITUDES!$J$2:$J$1048576) -> 0 | P7: 0 | Q7: =SUMIF(SOLICITUDES!$C$2:$C$1048576,BD!C7,SOLICITUDES!$K$2:$K$1048576) -> 0 | R7: 0
C8: T17010 | D8: 10 | E8: 13200 | F8: 240 | G8: -76.61410395 | H8: 2.493394197 | I8: 5 | J8: 5 | K8: 2 | L8: 2 | M8: =SUMIF(SOLICITUDES!$C$2:$C$1048576,BD!C8,SOLICITUDES!$I$2:$I$1048576) -> 0 | N8: 0 | O8: =SUMIF(SOLICITUDES!$C$2:$C$1048576,BD!C8,SOLICITUDES!$J$2:$J$1048576) -> 0 | P8: 0 | Q8: =SUMIF(SOLICITUDES!$C$2:$C$1048576,BD!C8,SOLICITUDES!$K$2:$K$1048576) -> 0 | R8: 0
C9: T42048 | D9: 0.5 | E9: 13200 | F9: 240 | G9: -76.61602735 | H9: 2.50057767 | I9: 0.25 | J9: 0.25 | K9: 0.1 | L9: 0.1 | M9: =SUMIF(SOLICITUDES!$C$2:$C$1048576,BD!C9,SOLICITUDES!$I$2:$I$1048576) -> 0 | N9: 0 | O9: =SUMIF(SOLICITUDES!$C$2:$C$1048576,BD!C9,SOLICITUDES!$J$2:$J$1048576) -> 0 | P9: 0 | Q9: =SUMIF(SOLICITUDES!$C$2:$C$1048576,BD!C9,SOLICITUDES!$K$2:$K$1048576) -> 0 | R9: 0
C10: T30628 | D10: 15 | E10: 13200 | F10: 240 | G10: -76.64857127 | H10: 2.518964679 | I10: 7.5 | J10: 7.5 | K10: 3 | L10: 3 | M10: =SUMIF(SOLICITUDES!$C$2:$C$1048576,BD!C10,SOLICITUDES!$I$2:$I$1048576) -> 0 | N10: 0 | O10: =SUMIF(SOLICITUDES!$C$2:$C$1048576,BD!C10,SOLICITUDES!$J$2:$J$1048576) -> 0 | P10: 0 | Q10: =SUMIF(SOLICITUDES!$C$2:$C$1048576,BD!C10,SOLICITUDES!$K$2:$K$1048576) -> 0 | R10: 0
C11: T2979 | D11: 15 | E11: 13200 | F11: 208 | G11: -76.65953465 | H11: 2.51262008 | I11: 7.5 | J11: 7.5 | K11: 3 | L11: 3 | M11: =SUMIF(SOLICITUDES!$C$2:$C$1048576,BD!C11,SOLICITUDES!$I$2:$I$1048576) -> 0 | N11: 0 | O11: =SUMIF(SOLICITUDES!$C$2:$C$1048576,BD!C11,SOLICITUDES!$J$2:$J$1048576) -> 0 | P11: 0 | Q11: =SUMIF(SOLICITUDES!$C$2:$C$1048576,BD!C11,SOLICITUDES!$K$2:$K$1048576) -> 0 | R11: 0
C12: T2553 | D12: 25 | E12: 13200 | F12: 240 | G12: -76.65883122 | H12: 2.519149092 | I12: 12.5 | J12: 12.5 | K12: 5 | L12: 5 | M12: =SUMIF(SOLICITUDES!$C$2:$C$1048576,BD!C12,SOLICITUDES!$I$2:$I$1048576) -> 0 | N12: 0 | O12: =SUMIF(SOLICITUDES!$C$2:$C$1048576,BD!C12,SOLICITUDES!$J$2:$J$1048576) -> 0 | P12: 0 | Q12: =SUMIF(SOLICITUDES!$C$2:$C$1048576,BD!C12,SOLICITUDES!$K$2:$K$1048576) -> 0 | R12: 0
C13: T1873 | D13: 37.5 | E13: 13200 | F13: 240 | G13: -76.58803329 | H13: 2.492003587 | I13: 18.75 | J13: 18.75 | K13: 7.5 | L13: 7.5 | M13: =SUMIF(SOLICITUDES!$C$2:$C$1048576,BD!C13,SOLICITUDES!$I$2:$I$1048576) -> 0 | N13: 0 | O13: =SUMIF(SOLICITUDES!$C$2:$C$1048576,BD!C13,SOLICITUDES!$J$2:$J$1048576) -> 0 | P13: 0 | Q13: =SUMIF(SOLICITUDES!$C$2:$C$1048576,BD!C13,SOLICITUDES!$K$2:$K$1048576) -> 0 | R13: 0
C14: T25088 | D14: 15 | E14: 13200 | F14: 240 | G14: -76.58739552 | H14: 2.491874285 | I14: 7.5 | J14: 7.5 | K14: 3 | L14: 3 | M14: =SUMIF(SOLICITUDES!$C$2:$C$1048576,BD!C14,SOLICITUDES!$I$2:$I$1048576) -> 0 | N14: 0 | O14: =SUMIF(SOLICITUDES!$C$2:$C$1048576,BD!C14,SOLICITUDES!$J$2:$J$1048576) -> 0 | P14: 0 | Q14: =SUMIF(SOLICITUDES!$C$2:$C$1048576,BD!C14,SOLICITUDES!$K$2:$K$1048576) -> 0 | R14: 0
C15: T1872 | D15: 25 | E15: 13200 | F15: 240 | G15: -76.58623534 | H15: 2.491198067 | I15: 12.5 | J15: 12.5 | K15: 5 | L15: 5 | M15: =SUMIF(SOLICITUDES!$C$2:$C$1048576,BD!C15,SOLICITUDES!$I$2:$I$1048576) -> 0 | N15: 0 | O15: =SUMIF(SOLICITUDES!$C$2:$C$1048576,BD!C15,SOLICITUDES!$J$2:$J$1048576) -> 0 | P15: 0 | Q15: =SUMIF(SOLICITUDES!$C$2:$C$1048576,BD!C15,SOLICITUDES!$K$2:$K$1048576) -> 0 | R15: 0
C16: T1877 | D16: 75 | E16: 13200 | F16: 208 | G16: -76.58501262 | H16: 2.490971529 | I16: 37.5 | J16: 37.5 | K16: 15 | L16: 15 | M16: =SUMIF(SOLICITUDES!$C$2:$C$1048576,BD!C16,SOLICITUDES!$I$2:$I$1048576) -> 0 | N16: 0 | O16: =SUMIF(SOLICITUDES!$C$2:$C$1048576,BD!C16,SOLICITUDES!$J$2:$J$1048576) -> 0 | P16: 0 | Q16: =SUMIF(SOLICITUDES!$C$2:$C$1048576,BD!C16,SOLICITUDES!$K$2:$K$1048576) -> 0 | R16: 0
C17: T1874 | D17: 25 | E17: 13200 | F17: 240 | G17: -76.59197085 | H17: 2.49365997 | I17: 12.5 | J17: 12.5 | K17: 5 | L17: 5 | M17: =SUMIF(SOLICITUDES!$C$2:$C$1048576,BD!C17,SOLICITUDES!$I$2:$I$1048576) -> 0 | N17: 0 | O17: =SUMIF(SOLICITUDES!$C$2:$C$1048576,BD!C17,SOLICITUDES!$J$2:$J$1048576) -> 0 | P17: 0 | Q17: =SUMIF(SOLICITUDES!$C$2:$C$1048576,BD!C17,SOLICITUDES!$K$2:$K$1048576) -> 0 | R17: 0
C18: T42787 | D18: 0.5 | E18: 13200 | F18: 240 | G18: -76.58463986 | H18: 2.490979612 | I18: 0.25 | J18: 0.25 | K18: 0.1 | L18: 0.1 | M18: =SUMIF(SOLICITUDES!$C$2:$C$1048576,BD!C18,SOLICITUDES!$I$2:$I$1048576) -> 0 | N18: 0 | O18: =SUMIF(SOLICITUDES!$C$2:$C$1048576,BD!C18,SOLICITUDES!$J$2:$J$1048576) -> 0 | P18: 0 | Q18: =SUMIF(SOLICITUDES!$C$2:$C$1048576,BD!C18,SOLICITUDES!$K$2:$K$1048576) -> 0 | R18: 0
C19: T3014 | D19: 25 | E19: 13200 | F19: 240 | G19: -76.58419078 | H19: 2.491351036 | I19: 12.5 | J19: 12.5 | K19: 5 | L19: 5 | M19: =SUMIF(SOLICITUDES!$C$2:$C$1048576,BD!C19,SOLICITUDES!$I$2:$I$1048576) -> 0 | N19: 0 | O19: =SUMIF(SOLICITUDES!$C$2:$C$1048576,BD!C19,SOLICITUDES!$J$2:$J$1048576) -> 0 | P19: 0 | Q19: =SUMIF(SOLICITUDES!$C$2:$C$1048576,BD!C19,SOLICITUDES!$K$2:$K$1048576) -> 0 | R19: 0
C20: T29425 | D20: 45 | E20: 13200 | F20: 214 | G20: -76.58330593 | H20: 2.490327159 | I20: 22.5 | J20: 22.5 | K20: 9 | L20: 9 | M20: =SUMIF(SOLICITUDES!$C$2:$C$1048576,BD!C20,SOLICITUDES!$I$2:$I$1048576) -> 0 | N20: 0 | O20: =SUMIF(SOLICITUDES!$C$2:$C$1048576,BD!C20,SOLICITUDES!$J$2:$J$1048576) -> 0 | P20: 0 | Q20: =SUMIF(SOLICITUDES!$C$2:$C$1048576,BD!C20,SOLICITUDES!$K$2:$K$1048576) -> 0 | R20: 0
C21: T40145 | D21: 30 | E21: 13200 | F21: 240 | G21: -76.59446751 | H21: 2.494890437 | I21: 15 | J21: 15 | K21: 6 | L21: 6 | M21: =SUMIF(SOLICITUDES!$C$2:$C$1048576,BD!C21,SOLICITUDES!$I$2:$I$1048576) -> 0 | N21: 0 | O21: =SUMIF(SOLICITUDES!$C$2:$C$1048576,BD!C21,SOLICITUDES!$J$2:$J$1048576) -> 0 | P21: 0 | Q21: =SUMIF(SOLICITUDES!$C$2:$C$1048576,BD!C21,SOLICITUDES!$K$2:$K$1048576) -> 0 | R21: 0
C22: T1875 | D22: 75 | E22: 13200 | F22: 208 | G22: -76.58537251 | H22: 2.490311511 | I22: 37.5 | J22: 37.5 | K22: 15 | L22: 15 | M22: =SUMIF(SOLICITUDES!$C$2:$C$1048576,BD!C22,SOLICITUDES!$I$2:$I$1048576) -> 0 | N22: 0 | O22: =SUMIF(SOLICITUDES!$C$2:$C$1048576,BD!C22,SOLICITUDES!$J$2:$J$1048576) -> 0 | P22: 0 | Q22: =SUMIF(SOLICITUDES!$C$2:$C$1048576,BD!C22,SOLICITUDES!$K$2:$K$1048576) -> 0 | R22: 0
C23: T1871 | D23: 75 | E23: 13200 | F23: 208 | G23: -76.58432048 | H23: 2.490473887 | I23: 37.5 | J23: 37.5 | K23: 15 | L23: 15 | M23: =SUMIF(SOLICITUDES!$C$2:$C$1048576,BD!C23,SOLICITUDES!$I$2:$I$1048576) -> 0 | N23: 0 | O23: =SUMIF(SOLICITUDES!$C$2:$C$1048576,BD!C23,SOLICITUDES!$J$2:$J$1048576) -> 0 | P23: 0 | Q23: =SUMIF(SOLICITUDES!$C$2:$C$1048576,BD!C23,SOLICITUDES!$K$2:$K$1048576) -> 0 | R23: 0
C24: T1870 | D24: 10 | E24: 13200 | F24: 240 | G24: -76.58482304 | H24: 2.493006168 | I24: 5 | J24: 5 | K24: 2 | L24: 2 | M24: =SUMIF(SOLICITUDES!$C$2:$C$1048576,BD!C24,SOLICITUDES!$I$2:$I$1048576) -> 0 | N24: 0 | O24: =SUMIF(SOLICITUDES!$C$2:$C$1048576,BD!C24,SOLICITUDES!$J$2:$J$1048576) -> 0 | P24: 0 | Q24: =SUMIF(SOLICITUDES!$C$2:$C$1048576,BD!C24,SOLICITUDES!$K$2:$K$1048576) -> 0 | R24: 0
C25: T4355 | D25: 112.5 | E25: 13200 | F25: 220 | G25: -76.58426666 | H25: 2.490139264 | I25: 56.25 | J25: 56.25 | K25: 22.5 | L25: 22.5 | M25: =SUMIF(SOLICITUDES!$C$2:$C$1048576,BD!C25,SOLICITUDES!$I$2:$I$1048576) -> 0 | N25: =M25/D25 -> 0 | O25: =SUMIF(SOLICITUDES!$C$2:$C$1048576,BD!C25,SOLICITUDES!$J$2:$J$1048576) -> 0 | P25: 0 | Q25: =SUMIF(SOLICITUDES!$C$2:$C$1048576,BD!C25,SOLICITUDES!$K$2:$K$1048576) -> 0 | R25: 0
C26: T40131 | D26: 150 | E26: 13200 | F26: 214 | G26: -76.58240555 | H26: 2.490482567 | I26: 75 | J26: 75 | K26: 30 | L26: 30 | M26: =SUMIF(SOLICITUDES!$C$2:$C$1048576,BD!C26,SOLICITUDES!$I$2:$I$1048576) -> 0 | N26: 0 | O26: =SUMIF(SOLICITUDES!$C$2:$C$1048576,BD!C26,SOLICITUDES!$J$2:$J$1048576) -> 0 | P26: 0 | Q26: =SUMIF(SOLICITUDES!$C$2:$C$1048576,BD!C26,SOLICITUDES!$K$2:$K$1048576) -> 0 | R26: 0
C27: T3092 | D27: 10 | E27: 13200 | F27: 240 | G27: -76.58263853 | H27: 2.492010587 | I27: 5 | J27: 5 | K27: 2 | L27: 2 | M27: =SUMIF(SOLICITUDES!$C$2:$C$1048576,BD!C27,SOLICITUDES!$I$2:$I$1048576) -> 0 | N27: 0 | O27: =SUMIF(SOLICITUDES!$C$2:$C$1048576,BD!C27,SOLICITUDES!$J$2:$J$1048576) -> 0 | P27: 0 | Q27: =SUMIF(SOLICITUDES!$C$2:$C$1048576,BD!C27,SOLICITUDES!$K$2:$K$1048576) -> 0 | R27: 0
C28: T1876 | D28: 45 | E28: 13200 | F28: 208 | G28: -76.5857415 | H28: 2.489389244 | I28: 22.5 | J28: 22.5 | K28: 9 | L28: 9 | M28: =SUMIF(SOLICITUDES!$C$2:$C$1048576,BD!C28,SOLICITUDES!$I$2:$I$1048576) -> 0 | N28: 0 | O28: =SUMIF(SOLICITUDES!$C$2:$C$1048576,BD!C28,SOLICITUDES!$J$2:$J$1048576) -> 0 | P28: 0 | Q28: =SUMIF(SOLICITUDES!$C$2:$C$1048576,BD!C28,SOLICITUDES!$K$2:$K$1048576) -> 0 | R28: 0
C29: T27971 | D29: 10 | E29: 13200 | F29: 240 | G29: -76.58055227 | H29: 2.492796552 | I29: 5 | J29: 5 | K29: 2 | L29: 2 | M29: =SUMIF(SOLICITUDES!$C$2:$C$1048576,BD!C29,SOLICITUDES!$I$2:$I$1048576) -> 0 | N29: 0 | O29: =SUMIF(SOLICITUDES!$C$2:$C$1048576,BD!C29,SOLICITUDES!$J$2:$J$1048576) -> 0 | P29: 0 | Q29: =SUMIF(SOLICITUDES!$C$2:$C$1048576,BD!C29,SOLICITUDES!$K$2:$K$1048576) -> 0 | R29: 0
C30: T16702 | D30: 75 | E30: 13200 | F30: 214 | G30: -76.58065233 | H30: 2.489730946 | I30: 37.5 | J30: 37.5 | K30: 15 | L30: 15 | M30: =SUMIF(SOLICITUDES!$C$2:$C$1048576,BD!C30,SOLICITUDES!$I$2:$I$1048576) -> 0 | N30: 0 | O30: =SUMIF(SOLICITUDES!$C$2:$C$1048576,BD!C30,SOLICITUDES!$J$2:$J$1048576) -> 0 | P30: 0 | Q30: =SUMIF(SOLICITUDES!$C$2:$C$1048576,BD!C30,SOLICITUDES!$K$2:$K$1048576) -> 0 | R30: 0
C31: T29491 | D31: 30 | E31: 13200 | F31: 214 | G31: -76.5818127 | H31: 2.492798385 | I31: 15 | J31: 15 | K31: 6 | L31: 6 | M31: =SUMIF(SOLICITUDES!$C$2:$C$1048576,BD!C31,SOLICITUDES!$I$2:$I$1048576) -> 0 | N31: 0 | O31: =SUMIF(SOLICITUDES!$C$2:$C$1048576,BD!C31,SOLICITUDES!$J$2:$J$1048576) -> 0 | P31: 0 | Q31: =SUMIF(SOLICITUDES!$C$2:$C$1048576,BD!C31,SOLICITUDES!$K$2:$K$1048576) -> 0 | R31: 0
C32: T1985 | D32: 75 | E32: 13200 | F32: 208 | G32: -76.58131766 | H32: 2.489803551 | I32: 37.5 | J32: 37.5 | K32: 15 | L32: 15 | M32: =SUMIF(SOLICITUDES!$C$2:$C$1048576,BD!C32,SOLICITUDES!$I$2:$I$1048576) -> 0 | N32: 0 | O32: =SUMIF(SOLICITUDES!$C$2:$C$1048576,BD!C32,SOLICITUDES!$J$2:$J$1048576) -> 0 | P32: 0 | Q32: =SUMIF(SOLICITUDES!$C$2:$C$1048576,BD!C32,SOLICITUDES!$K$2:$K$1048576) -> 0 | R32: 0
C33: T30634 | D33: 112.5 | E33: 13200 | F33: 240 | G33: -76.5753768 | H33: 2.48851057 | I33: 56.25 | J33: 56.25 | K33: 22.5 | L33: 22.5 | M33: =SUMIF(SOLICITUDES!$C$2:$C$1048576,BD!C33,SOLICITUDES!$I$2:$I$1048576) -> 0 | N33: 0 | O33: =SUMIF(SOLICITUDES!$C$2:$C$1048576,BD!C33,SOLICITUDES!$J$2:$J$1048576) -> 0 | P33: 0 | Q33: =SUMIF(SOLICITUDES!$C$2:$C$1048576,BD!C33,SOLICITUDES!$K$2:$K$1048576) -> 0 | R33: 0
C34: T1979 | D34: 75 | E34: 13200 | F34: 208 | G34: -76.57486255 | H34: 2.488227559 | I34: 37.5 | J34: 37.5 | K34: 15 | L34: 15 | M34: =SUMIF(SOLICITUDES!$C$2:$C$1048576,BD!C34,SOLICITUDES!$I$2:$I$1048576) -> 0 | N34: 0 | O34: =SUMIF(SOLICITUDES!$C$2:$C$1048576,BD!C34,SOLICITUDES!$J$2:$J$1048576) -> 0 | P34: 0 | Q34: =SUMIF(SOLICITUDES!$C$2:$C$1048576,BD!C34,SOLICITUDES!$K$2:$K$1048576) -> 0 | R34: 0
C35: T1962 | D35: 75 | E35: 13200 | F35: 208 | G35: -76.57552825 | H35: 2.487305413 | I35: 37.5 | J35: 37.5 | K35: 15 | L35: 15 | M35: =SUMIF(SOLICITUDES!$C$2:$C$1048576,BD!C35,SOLICITUDES!$I$2:$I$1048576) -> 0 | N35: 0 | O35: =SUMIF(SOLICITUDES!$C$2:$C$1048576,BD!C35,SOLICITUDES!$J$2:$J$1048576) -> 0 | P35: 0 | Q35: =SUMIF(SOLICITUDES!$C$2:$C$1048576,BD!C35,SOLICITUDES!$K$2:$K$1048576) -> 0 | R35: 0
C36: T1947 | D36: 75 | E36: 13200 | F36: 208 | G36: -76.57670576 | H36: 2.488201144 | I36: 37.5 | J36: 37.5 | K36: 15 | L36: 15 | M36: =SUMIF(SOLICITUDES!$C$2:$C$1048576,BD!C36,SOLICITUDES!$I$2:$I$1048576) -> 0 | N36: 0 | O36: =SUMIF(SOLICITUDES!$C$2:$C$1048576,BD!C36,SOLICITUDES!$J$2:$J$1048576) -> 0 | P36: 0 | Q36: =SUMIF(SOLICITUDES!$C$2:$C$1048576,BD!C36,SOLICITUDES!$K$2:$K$1048576) -> 0 | R36: 0
C37: T3015 | D37: 25 | E37: 13200 | F37: 240 | G37: -76.58546811 | H37: 2.499146734 | I37: 12.5 | J37: 12.5 | K37: 5 | L37: 5 | M37: =SUMIF(SOLICITUDES!$C$2:$C$1048576,BD!C37,SOLICITUDES!$I$2:$I$1048576) -> 0 | N37: 0 | O37: =SUMIF(SOLICITUDES!$C$2:$C$1048576,BD!C37,SOLICITUDES!$J$2:$J$1048576) -> 0 | P37: 0 | Q37: =SUMIF(SOLICITUDES!$C$2:$C$1048576,BD!C37,SOLICITUDES!$K$2:$K$1048576) -> 0 | R37: 0
C38: T42838 | D38: 25 | E38: 13200 | F38: 214 | G38: -76.57529905 | H38: 2.498128679 | I38: 12.5 | J38: 12.5 | K38: 5 | L38: 5 | M38: =SUMIF(SOLICITUDES!$C$2:$C$1048576,BD!C38,SOLICITUDES!$I$2:$I$1048576) -> 0 | N38: 0 | O38: =SUMIF(SOLICITUDES!$C$2:$C$1048576,BD!C38,SOLICITUDES!$J$2:$J$1048576) -> 0 | P38: 0 | Q38: =SUMIF(SOLICITUDES!$C$2:$C$1048576,BD!C38,SOLICITUDES!$K$2:$K$1048576) -> 0 | R38: 0
C39: T1944 | D39: 112.5 | E39: 13200 | F39: 208 | G39: -76.57394502 | H39: 2.489339518 | I39: 56.25 | J39: 56.25 | K39: 22.5 | L39: 22.5 | M39: =SUMIF(SOLICITUDES!$C$2:$C$1048576,BD!C39,SOLICITUDES!$I$2:$I$1048576) -> 0 | N39: 0 | O39: =SUMIF(SOLICITUDES!$C$2:$C$1048576,BD!C39,SOLICITUDES!$J$2:$J$1048576) -> 0 | P39: 0 | Q39: =SUMIF(SOLICITUDES!$C$2:$C$1048576,BD!C39,SOLICITUDES!$K$2:$K$1048576) -> 0 | R39: 0
C40: T1999 | D40: 45 | E40: 13200 | F40: 208 | G40: -76.57570807 | H40: 2.487341661 | I40: 22.5 | J40: 22.5 | K40: 9 | L40: 9 | M40: =SUMIF(SOLICITUDES!$C$2:$C$1048576,BD!C40,SOLICITUDES!$I$2:$I$1048576) -> 0 | N40: 0 | O40: =SUMIF(SOLICITUDES!$C$2:$C$1048576,BD!C40,SOLICITUDES!$J$2:$J$1048576) -> 0 | P40: 0 | Q40: =SUMIF(SOLICITUDES!$C$2:$C$1048576,BD!C40,SOLICITUDES!$K$2:$K$1048576) -> 0 | R40: 0
C41: T2000 | D41: 50 | E41: 13200 | F41: 240 | G41: -76.57714518 | H41: 2.49124886 | I41: 25 | J41: 25 | K41: 10 | L41: 10 | M41: =SUMIF(SOLICITUDES!$C$2:$C$1048576,BD!C41,SOLICITUDES!$I$2:$I$1048576) -> 0 | N41: 0 | O41: =SUMIF(SOLICITUDES!$C$2:$C$1048576,BD!C41,SOLICITUDES!$J$2:$J$1048576) -> 0 | P41: 0 | Q41: =SUMIF(SOLICITUDES!$C$2:$C$1048576,BD!C41,SOLICITUDES!$K$2:$K$1048576) -> 0 | R41: 0
C42: T1992 | D42: 50 | E42: 13200 | F42: 240 | G42: -76.57283028 | H42: 2.488895968 | I42: 25 | J42: 25 | K42: 10 | L42: 10 | M42: =SUMIF(SOLICITUDES!$C$2:$C$1048576,BD!C42,SOLICITUDES!$I$2:$I$1048576) -> 0 | N42: 0 | O42: =SUMIF(SOLICITUDES!$C$2:$C$1048576,BD!C42,SOLICITUDES!$J$2:$J$1048576) -> 0 | P42: 0 | Q42: =SUMIF(SOLICITUDES!$C$2:$C$1048576,BD!C42,SOLICITUDES!$K$2:$K$1048576) -> 0 | R42: 0
C43: T1974 | D43: 75 | E43: 13200 | F43: 208 | G43: -76.57747901 | H43: 2.4881924 | I43: 37.5 | J43: 37.5 | K43: 15 | L43: 15 | M43: =SUMIF(SOLICITUDES!$C$2:$C$1048576,BD!C43,SOLICITUDES!$I$2:$I$1048576) -> 0 | N43: 0 | O43: =SUMIF(SOLICITUDES!$C$2:$C$1048576,BD!C43,SOLICITUDES!$J$2:$J$1048576) -> 0 | P43: 0 | Q43: =SUMIF(SOLICITUDES!$C$2:$C$1048576,BD!C43,SOLICITUDES!$K$2:$K$1048576) -> 0 | R43: 0
C44: T1966 | D44: 75 | E44: 13200 | F44: 208 | G44: -76.57365761 | H44: 2.488543609 | I44: 37.5 | J44: 37.5 | K44: 15 | L44: 15 | M44: =SUMIF(SOLICITUDES!$C$2:$C$1048576,BD!C44,SOLICITUDES!$I$2:$I$1048576) -> 0 | N44: 0 | O44: =SUMIF(SOLICITUDES!$C$2:$C$1048576,BD!C44,SOLICITUDES!$J$2:$J$1048576) -> 0 | P44: 0 | Q44: =SUMIF(SOLICITUDES!$C$2:$C$1048576,BD!C44,SOLICITUDES!$K$2:$K$1048576) -> 0 | R44: 0
C45: T1984 | D45: 75 | E45: 13200 | F45: 208 | G45: -76.57622791 | H45: 2.491664491 | I45: 37.5 | J45: 37.5 | K45: 15 | L45: 15 | M45: =SUMIF(SOLICITUDES!$C$2:$C$1048576,BD!C45,SOLICITUDES!$I$2:$I$1048576) -> 0 | N45: 0 | O45: =SUMIF(SOLICITUDES!$C$2:$C$1048576,BD!C45,SOLICITUDES!$J$2:$J$1048576) -> 0 | P45: 0 | Q45: =SUMIF(SOLICITUDES!$C$2:$C$1048576,BD!C45,SOLICITUDES!$K$2:$K$1048576) -> 0 | R45: 0
C46: T3081 | D46: 15 | E46: 13200 | F46: 208 | G46: -76.58790458 | H46: 2.499590775 | I46: 7.5 | J46: 7.5 | K46: 3 | L46: 3 | M46: =SUMIF(SOLICITUDES!$C$2:$C$1048576,BD!C46,SOLICITUDES!$I$2:$I$1048576) -> 0 | N46: 0 | O46: =SUMIF(SOLICITUDES!$C$2:$C$1048576,BD!C46,SOLICITUDES!$J$2:$J$1048576) -> 0 | P46: 0 | Q46: =SUMIF(SOLICITUDES!$C$2:$C$1048576,BD!C46,SOLICITUDES!$K$2:$K$1048576) -> 0 | R46: 0
C47: T1989 | D47: 112.5 | E47: 13200 | F47: 208 | G47: -76.57524054 | H47: 2.487278175 | I47: 56.25 | J47: 56.25 | K47: 22.5 | L47: 22.5 | M47: =SUMIF(SOLICITUDES!$C$2:$C$1048576,BD!C47,SOLICITUDES!$I$2:$I$1048576) -> 0 | N47: 0 | O47: =SUMIF(SOLICITUDES!$C$2:$C$1048576,BD!C47,SOLICITUDES!$J$2:$J$1048576) -> 0 | P47: 0 | Q47: =SUMIF(SOLICITUDES!$C$2:$C$1048576,BD!C47,SOLICITUDES!$K$2:$K$1048576) -> 0 | R47: 0
C48: T29533 | D48: 10 | E48: 13200 | F48: 240 | G48: -76.57671236 | H48: 2.500235514 | I48: 5 | J48: 5 | K48: 2 | L48: 2 | M48: =SUMIF(SOLICITUDES!$C$2:$C$1048576,BD!C48,SOLICITUDES!$I$2:$I$1048576) -> 0 | N48: 0 | O48: =SUMIF(SOLICITUDES!$C$2:$C$1048576,BD!C48,SOLICITUDES!$J$2:$J$1048576) -> 0 | P48: 0 | Q48: =SUMIF(SOLICITUDES!$C$2:$C$1048576,BD!C48,SOLICITUDES!$K$2:$K$1048576) -> 0 | R48: 0
C49: T1986 | D49: 75 | E49: 13200 | F49: 208 | G49: -76.5738647 | H49: 2.48776598 | I49: 37.5 | J49: 37.5 | K49: 15 | L49: 15 | M49: =SUMIF(SOLICITUDES!$C$2:$C$1048576,BD!C49,SOLICITUDES!$I$2:$I$1048576) -> 0 | N49: 0 | O49: =SUMIF(SOLICITUDES!$C$2:$C$1048576,BD!C49,SOLICITUDES!$J$2:$J$1048576) -> 0 | P49: 0 | Q49: =SUMIF(SOLICITUDES!$C$2:$C$1048576,BD!C49,SOLICITUDES!$K$2:$K$1048576) -> 0 | R49: 0
C50: T1958 | D50: 75 | E50: 13200 | F50: 208 | G50: -76.5745033 | H50: 2.487187456 | I50: 37.5 | J50: 37.5 | K50: 15 | L50: 15 | M50: =SUMIF(SOLICITUDES!$C$2:$C$1048576,BD!C50,SOLICITUDES!$I$2:$I$1048576) -> 0 | N50: 0 | O50: =SUMIF(SOLICITUDES!$C$2:$C$1048576,BD!C50,SOLICITUDES!$J$2:$J$1048576) -> 0 | P50: 0 | Q50: =SUMIF(SOLICITUDES!$C$2:$C$1048576,BD!C50,SOLICITUDES!$K$2:$K$1048576) -> 0 | R50: 0
C51: T1954 | D51: 75 | E51: 13200 | F51: 208 | G51: -76.57318077 | H51: 2.489348258 | I51: 37.5 | J51: 37.5 | K51: 15 | L51: 15 | M51: =SUMIF(SOLICITUDES!$C$2:$C$1048576,BD!C51,SOLICITUDES!$I$2:$I$1048576) -> 0 | N51: 0 | O51: =SUMIF(SOLICITUDES!$C$2:$C$1048576,BD!C51,SOLICITUDES!$J$2:$J$1048576) -> 0 | P51: 0 | Q51: =SUMIF(SOLICITUDES!$C$2:$C$1048576,BD!C51,SOLICITUDES!$K$2:$K$1048576) -> 0 | R51: 0
C52: T1987 | D52: 75 | E52: 13200 | F52: 208 | G52: -76.57799924 | H52: 2.491520481 | I52: 37.5 | J52: 37.5 | K52: 15 | L52: 15 | M52: =SUMIF(SOLICITUDES!$C$2:$C$1048576,BD!C52,SOLICITUDES!$I$2:$I$1048576) -> 0 | N52: 0 | O52: =SUMIF(SOLICITUDES!$C$2:$C$1048576,BD!C52,SOLICITUDES!$J$2:$J$1048576) -> 0 | P52: 0 | Q52: =SUMIF(SOLICITUDES!$C$2:$C$1048576,BD!C52,SOLICITUDES!$K$2:$K$1048576) -> 0 | R52: 0
C53: T1971 | D53: 112.5 | E53: 13200 | F53: 208 | G53: -76.57601371 | H53: 2.48747742 | I53: 56.25 | J53: 56.25 | K53: 22.5 | L53: 22.5 | M53: =SUMIF(SOLICITUDES!$C$2:$C$1048576,BD!C53,SOLICITUDES!$I$2:$I$1048576) -> 0 | N53: 0 | O53: =SUMIF(SOLICITUDES!$C$2:$C$1048576,BD!C53,SOLICITUDES!$J$2:$J$1048576) -> 0 | P53: 0 | Q53: =SUMIF(SOLICITUDES!$C$2:$C$1048576,BD!C53,SOLICITUDES!$K$2:$K$1048576) -> 0 | R53: 0
C54: T1988 | D54: 112.5 | E54: 13200 | F54: 208 | G54: -76.57635542 | H54: 2.487387125 | I54: 56.25 | J54: 56.25 | K54: 22.5 | L54: 22.5 | M54: =SUMIF(SOLICITUDES!$C$2:$C$1048576,BD!C54,SOLICITUDES!$I$2:$I$1048576) -> 0 | N54: 0 | O54: =SUMIF(SOLICITUDES!$C$2:$C$1048576,BD!C54,SOLICITUDES!$J$2:$J$1048576) -> 0 | P54: 0 | Q54: =SUMIF(SOLICITUDES!$C$2:$C$1048576,BD!C54,SOLICITUDES!$K$2:$K$1048576) -> 0 | R54: 0
C55: T1994 | D55: 112.5 | E55: 13200 | F55: 208 | G55: -76.57406279 | H55: 2.487033554 | I55: 56.25 | J55: 56.25 | K55: 22.5 | L55: 22.5 | M55: =SUMIF(SOLICITUDES!$C$2:$C$1048576,BD!C55,SOLICITUDES!$I$2:$I$1048576) -> 0 | N55: 0 | O55: =SUMIF(SOLICITUDES!$C$2:$C$1048576,BD!C55,SOLICITUDES!$J$2:$J$1048576) -> 0 | P55: 0 | Q55: =SUMIF(SOLICITUDES!$C$2:$C$1048576,BD!C55,SOLICITUDES!$K$2:$K$1048576) -> 0 | R55: 0
C56: T1972 | D56: 45 | E56: 13200 | F56: 208 | G56: -76.57674035 | H56: 2.491818422 | I56: 22.5 | J56: 22.5 | K56: 9 | L56: 9 | M56: =SUMIF(SOLICITUDES!$C$2:$C$1048576,BD!C56,SOLICITUDES!$I$2:$I$1048576) -> 0 | N56: 0 | O56: =SUMIF(SOLICITUDES!$C$2:$C$1048576,BD!C56,SOLICITUDES!$J$2:$J$1048576) -> 0 | P56: 0 | Q56: =SUMIF(SOLICITUDES!$C$2:$C$1048576,BD!C56,SOLICITUDES!$K$2:$K$1048576) -> 0 | R56: 0
C57: T1964 | D57: 30 | E57: 13200 | F57: 208 | G57: -76.57263789 | H57: 2.489190753 | I57: 15 | J57: 15 | K57: 6 | L57: 6 | M57: =SUMIF(SOLICITUDES!$C$2:$C$1048576,BD!C57,SOLICITUDES!$I$2:$I$1048576) -> 0 | N57: 0 | O57: =SUMIF(SOLICITUDES!$C$2:$C$1048576,BD!C57,SOLICITUDES!$J$2:$J$1048576) -> 0 | P57: 0 | Q57: =SUMIF(SOLICITUDES!$C$2:$C$1048576,BD!C57,SOLICITUDES!$K$2:$K$1048576) -> 0 | R57: 0
C58: T1993 | D58: 45 | E58: 13200 | F58: 208 | G58: -76.57632661 | H58: 2.492189034 | I58: 22.5 | J58: 22.5 | K58: 9 | L58: 9 | M58: =SUMIF(SOLICITUDES!$C$2:$C$1048576,BD!C58,SOLICITUDES!$I$2:$I$1048576) -> 0 | N58: 0 | O58: =SUMIF(SOLICITUDES!$C$2:$C$1048576,BD!C58,SOLICITUDES!$J$2:$J$1048576) -> 0 | P58: 0 | Q58: =SUMIF(SOLICITUDES!$C$2:$C$1048576,BD!C58,SOLICITUDES!$K$2:$K$1048576) -> 0 | R58: 0
C59: T1982 | D59: 50 | E59: 13200 | F59: 240 | G59: -76.57568162 | H59: 2.485967085 | I59: 25 | J59: 25 | K59: 10 | L59: 10 | M59: =SUMIF(SOLICITUDES!$C$2:$C$1048576,BD!C59,SOLICITUDES!$I$2:$I$1048576) -> 0 | N59: 0 | O59: =SUMIF(SOLICITUDES!$C$2:$C$1048576,BD!C59,SOLICITUDES!$J$2:$J$1048576) -> 0 | P59: 0 | Q59: =SUMIF(SOLICITUDES!$C$2:$C$1048576,BD!C59,SOLICITUDES!$K$2:$K$1048576) -> 0 | R59: 0
C60: T16254 | D60: 37.5 | E60: 13200 | F60: 240 | G60: -76.48320888 | H60: 2.712754105 | I60: 18.75 | J60: 18.75 | K60: 7.5 | L60: 7.5 | M60: =SUMIF(SOLICITUDES!$C$2:$C$1048576,BD!C60,SOLICITUDES!$I$2:$I$1048576) -> 0 | N60: 0 | O60: =SUMIF(SOLICITUDES!$C$2:$C$1048576,BD!C60,SOLICITUDES!$J$2:$J$1048576) -> 0 | P60: 0 | Q60: =SUMIF(SOLICITUDES!$C$2:$C$1048576,BD!C60,SOLICITUDES!$K$2:$K$1048576) -> 0 | R60: 0
C61: T23162 | D61: 5 | E61: 13200 | F61: 240 | G61: -76.48680553 | H61: 2.71023447 | I61: 2.5 | J61: 2.5 | K61: 1 | L61: 1 | M61: =SUMIF(SOLICITUDES!$C$2:$C$1048576,BD!C61,SOLICITUDES!$I$2:$I$1048576) -> 0 | N61: 0 | O61: =SUMIF(SOLICITUDES!$C$2:$C$1048576,BD!C61,SOLICITUDES!$J$2:$J$1048576) -> 0 | P61: 0 | Q61: =SUMIF(SOLICITUDES!$C$2:$C$1048576,BD!C61,SOLICITUDES!$K$2:$K$1048576) -> 0 | R61: 0
C62: T23159 | D62: 5 | E62: 13200 | F62: 240 | G62: -76.48394596 | H62: 2.717961631 | I62: 2.5 | J62: 2.5 | K62: 1 | L62: 1 | M62: =SUMIF(SOLICITUDES!$C$2:$C$1048576,BD!C62,SOLICITUDES!$I$2:$I$1048576) -> 0 | N62: 0 | O62: =SUMIF(SOLICITUDES!$C$2:$C$1048576,BD!C62,SOLICITUDES!$J$2:$J$1048576) -> 0 | P62: 0 | Q62: =SUMIF(SOLICITUDES!$C$2:$C$1048576,BD!C62,SOLICITUDES!$K$2:$K$1048576) -> 0 | R62: 0
C63: T23155 | D63: 5 | E63: 13200 | F63: 240 | G63: -76.48230286 | H63: 2.720224678 | I63: 2.5 | J63: 2.5 | K63: 1 | L63: 1 | M63: =SUMIF(SOLICITUDES!$C$2:$C$1048576,BD!C63,SOLICITUDES!$I$2:$I$1048576) -> 0 | N63: 0 | O63: =SUMIF(SOLICITUDES!$C$2:$C$1048576,BD!C63,SOLICITUDES!$J$2:$J$1048576) -> 0 | P63: 0 | Q63: =SUMIF(SOLICITUDES!$C$2:$C$1048576,BD!C63,SOLICITUDES!$K$2:$K$1048576) -> 0 | R63: 0
C64: T23145 | D64: 10 | E64: 13200 | F64: 240 | G64: -76.48225461 | H64: 2.710158681 | I64: 5 | J64: 5 | K64: 2 | L64: 2 | M64: =SUMIF(SOLICITUDES!$C$2:$C$1048576,BD!C64,SOLICITUDES!$I$2:$I$1048576) -> 0 | N64: 0 | O64: =SUMIF(SOLICITUDES!$C$2:$C$1048576,BD!C64,SOLICITUDES!$J$2:$J$1048576) -> 0 | P64: 0 | Q64: =SUMIF(SOLICITUDES!$C$2:$C$1048576,BD!C64,SOLICITUDES!$K$2:$K$1048576) -> 0 | R64: 0
C65: T23158 | D65: 10 | E65: 13200 | F65: 240 | G65: -76.47763447 | H65: 2.71233494 | I65: 5 | J65: 5 | K65: 2 | L65: 2 | M65: =SUMIF(SOLICITUDES!$C$2:$C$1048576,BD!C65,SOLICITUDES!$I$2:$I$1048576) -> 0 | N65: 0 | O65: =SUMIF(SOLICITUDES!$C$2:$C$1048576,BD!C65,SOLICITUDES!$J$2:$J$1048576) -> 0 | P65: 0 | Q65: =SUMIF(SOLICITUDES!$C$2:$C$1048576,BD!C65,SOLICITUDES!$K$2:$K$1048576) -> 0 | R65: 0
C66: T23156 | D66: 5 | E66: 13200 | F66: 240 | G66: -76.47733485 | H66: 2.724798071 | I66: 2.5 | J66: 2.5 | K66: 1 | L66: 1 | M66: =SUMIF(SOLICITUDES!$C$2:$C$1048576,BD!C66,SOLICITUDES!$I$2:$I$1048576) -> 0 | N66: 0 | O66: =SUMIF(SOLICITUDES!$C$2:$C$1048576,BD!C66,SOLICITUDES!$J$2:$J$1048576) -> 0 | P66: 0 | Q66: =SUMIF(SOLICITUDES!$C$2:$C$1048576,BD!C66,SOLICITUDES!$K$2:$K$1048576) -> 0 | R66: 0
C67: T23163 | D67: 5 | E67: 13200 | F67: 240 | G67: -76.48733009 | H67: 2.719983314 | I67: 2.5 | J67: =D67*0.5-M67 -> 2.5 | K67: 1 | L67: 1 | M67: =SUMIF(SOLICITUDES!$C$2:$C$1048576,BD!C67,SOLICITUDES!$I$2:$I$1048576) -> 0 | N67: =M67/D67 -> 0 | O67: =SUMIF(SOLICITUDES!$C$2:$C$1048576,BD!C67,SOLICITUDES!$J$2:$J$1048576) -> 0 | P67: 0 | Q67: =SUMIF(SOLICITUDES!$C$2:$C$1048576,BD!C67,SOLICITUDES!$K$2:$K$1048576) -> 0 | R67: 0
C68: T23173 | D68: 5 | E68: 13200 | F68: 240 | G68: -76.48197116 | H68: 2.728455196 | I68: =D68*0.5 -> 2.5 | J68: 2.5 | K68: =0.2*D68 -> 1 | L68: =0.2*D68 -> 1 | M68: =SUMIF(SOLICITUDES!$C$2:$C$1048576,BD!C68,SOLICITUDES!$I$2:$I$1048576) -> 0 | N68: 0 | O68: =SUMIF(SOLICITUDES!$C$2:$C$1048576,BD!C68,SOLICITUDES!$J$2:$J$1048576) -> 0 | P68: =O68/(2*K68) -> 0 | Q68: =SUMIF(SOLICITUDES!$C$2:$C$1048576,BD!C68,SOLICITUDES!$K$2:$K$1048576) -> 0 | R68: =Q68/(2*L68) -> 0
C69: T23160 | D69: 5 | E69: 13200 | F69: 240 | G69: -76.47249406 | H69: 2.715660429 | I69: 2.5 | J69: 2.5 | K69: 1 | L69: 1 | M69: =SUMIF(SOLICITUDES!$C$2:$C$1048576,BD!C69,SOLICITUDES!$I$2:$I$1048576) -> 0 | N69: 0 | O69: =SUMIF(SOLICITUDES!$C$2:$C$1048576,BD!C69,SOLICITUDES!$J$2:$J$1048576) -> 0 | P69: 0 | Q69: =SUMIF(SOLICITUDES!$C$2:$C$1048576,BD!C69,SOLICITUDES!$K$2:$K$1048576) -> 0 | R69: 0
C70: T23146 | D70: 5 | E70: 13200 | F70: 240 | G70: -76.47992806 | H70: 2.705078765 | I70: 2.5 | J70: 2.5 | K70: 1 | L70: 1 | M70: =SUMIF(SOLICITUDES!$C$2:$C$1048576,BD!C70,SOLICITUDES!$I$2:$I$1048576) -> 0 | N70: 0 | O70: =SUMIF(SOLICITUDES!$C$2:$C$1048576,BD!C70,SOLICITUDES!$J$2:$J$1048576) -> 0 | P70: 0 | Q70: =SUMIF(SOLICITUDES!$C$2:$C$1048576,BD!C70,SOLICITUDES!$K$2:$K$1048576) -> 0 | R70: 0
C71: T23165 | D71: 5 | E71: 13200 | F71: 240 | G71: -76.4791116 | H71: 2.728856674 | I71: 2.5 | J71: 2.5 | K71: 1 | L71: 1 | M71: =SUMIF(SOLICITUDES!$C$2:$C$1048576,BD!C71,SOLICITUDES!$I$2:$I$1048576) -> 0 | N71: 0 | O71: =SUMIF(SOLICITUDES!$C$2:$C$1048576,BD!C71,SOLICITUDES!$J$2:$J$1048576) -> 0 | P71: 0 | Q71: =SUMIF(SOLICITUDES!$C$2:$C$1048576,BD!C71,SOLICITUDES!$K$2:$K$1048576) -> 0 | R71: 0
C72: T23157 | D72: 5 | E72: 13200 | F72: 240 | G72: -76.47114969 | H72: 2.712107735 | I72: 2.5 | J72: 2.5 | K72: 1 | L72: 1 | M72: =SUMIF(SOLICITUDES!$C$2:$C$1048576,BD!C72,SOLICITUDES!$I$2:$I$1048576) -> 0 | N72: 0 | O72: =SUMIF(SOLICITUDES!$C$2:$C$1048576,BD!C72,SOLICITUDES!$J$2:$J$1048576) -> 0 | P72: 0 | Q72: =SUMIF(SOLICITUDES!$C$2:$C$1048576,BD!C72,SOLICITUDES!$K$2:$K$1048576) -> 0 | R72: 0
C73: T23147 | D73: 5 | E73: 13200 | F73: 240 | G73: -76.47773099 | H73: 2.702919918 | I73: 2.5 | J73: 2.5 | K73: 1 | L73: 1 | M73: =SUMIF(SOLICITUDES!$C$2:$C$1048576,BD!C73,SOLICITUDES!$I$2:$I$1048576) -> 0 | N73: 0 | O73: =SUMIF(SOLICITUDES!$C$2:$C$1048576,BD!C73,SOLICITUDES!$J$2:$J$1048576) -> 0 | P73: 0 | Q73: =SUMIF(SOLICITUDES!$C$2:$C$1048576,BD!C73,SOLICITUDES!$K$2:$K$1048576) -> 0 | R73: 0
C74: T23161 | D74: 10 | E74: 13200 | F74: 240 | G74: -76.47544971 | H74: 2.727730683 | I74: 5 | J74: 5 | K74: 2 | L74: 2 | M74: =SUMIF(SOLICITUDES!$C$2:$C$1048576,BD!C74,SOLICITUDES!$I$2:$I$1048576) -> 0 | N74: 0 | O74: =SUMIF(SOLICITUDES!$C$2:$C$1048576,BD!C74,SOLICITUDES!$J$2:$J$1048576) -> 0 | P74: 0 | Q74: =SUMIF(SOLICITUDES!$C$2:$C$1048576,BD!C74,SOLICITUDES!$K$2:$K$1048576) -> 0 | R74: 0
C75: T23164 | D75: 10 | E75: 13200 | F75: 240 | G75: -76.49183117 | H75: 2.716079749 | I75: 5 | J75: 5 | K75: 2 | L75: 2 | M75: =SUMIF(SOLICITUDES!$C$2:$C$1048576,BD!C75,SOLICITUDES!$I$2:$I$1048576) -> 0 | N75: 0 | O75: =SUMIF(SOLICITUDES!$C$2:$C$1048576,BD!C75,SOLICITUDES!$J$2:$J$1048576) -> 0 | P75: 0 | Q75: =SUMIF(SOLICITUDES!$C$2:$C$1048576,BD!C75,SOLICITUDES!$K$2:$K$1048576) -> 0 | R75: 0
C76: T23168 | D76: 5 | E76: 13200 | F76: 240 | G76: -76.48185376 | H76: 2.735401192 | I76: 2.5 | J76: 2.5 | K76: 1 | L76: 1 | M76: =SUMIF(SOLICITUDES!$C$2:$C$1048576,BD!C76,SOLICITUDES!$I$2:$I$1048576) -> 0 | N76: 0 | O76: =SUMIF(SOLICITUDES!$C$2:$C$1048576,BD!C76,SOLICITUDES!$J$2:$J$1048576) -> 0 | P76: 0 | Q76: =SUMIF(SOLICITUDES!$C$2:$C$1048576,BD!C76,SOLICITUDES!$K$2:$K$1048576) -> 0 | R76: 0
C77: T23153 | D77: 5 | E77: 13200 | F77: 240 | G77: -76.46050751 | H77: 2.710022447 | I77: 2.5 | J77: 2.5 | K77: 1 | L77: 1 | M77: =SUMIF(SOLICITUDES!$C$2:$C$1048576,BD!C77,SOLICITUDES!$I$2:$I$1048576) -> 0 | N77: 0 | O77: =SUMIF(SOLICITUDES!$C$2:$C$1048576,BD!C77,SOLICITUDES!$J$2:$J$1048576) -> 0 | P77: 0 | Q77: =SUMIF(SOLICITUDES!$C$2:$C$1048576,BD!C77,SOLICITUDES!$K$2:$K$1048576) -> 0 | R77: 0
C78: T23148 | D78: 5 | E78: 13200 | F78: 240 | G78: -76.47554137 | H78: 2.699485834 | I78: 2.5 | J78: 2.5 | K78: 1 | L78: 1 | M78: =SUMIF(SOLICITUDES!$C$2:$C$1048576,BD!C78,SOLICITUDES!$I$2:$I$1048576) -> 0 | N78: 0 | O78: =SUMIF(SOLICITUDES!$C$2:$C$1048576,BD!C78,SOLICITUDES!$J$2:$J$1048576) -> 0 | P78: 0 | Q78: =SUMIF(SOLICITUDES!$C$2:$C$1048576,BD!C78,SOLICITUDES!$K$2:$K$1048576) -> 0 | R78: 0
C79: T23166 | D79: 10 | E79: 13200 | F79: 240 | G79: -76.47716479 | H79: 2.732838481 | I79: 5 | J79: 5 | K79: 2 | L79: 2 | M79: =SUMIF(SOLICITUDES!$C$2:$C$1048576,BD!C79,SOLICITUDES!$I$2:$I$1048576) -> 0 | N79: 0 | O79: =SUMIF(SOLICITUDES!$C$2:$C$1048576,BD!C79,SOLICITUDES!$J$2:$J$1048576) -> 0 | P79: 0 | Q79: =SUMIF(SOLICITUDES!$C$2:$C$1048576,BD!C79,SOLICITUDES!$K$2:$K$1048576) -> 0 | R79: 0
C80: T23152 | D80: 5 | E80: 13200 | F80: 240 | G80: -76.46232201 | H80: 2.708148105 | I80: 2.5 | J80: 2.5 | K80: 1 | L80: 1 | M80: =SUMIF(SOLICITUDES!$C$2:$C$1048576,BD!C80,SOLICITUDES!$I$2:$I$1048576) -> 0 | N80: 0 | O80: =SUMIF(SOLICITUDES!$C$2:$C$1048576,BD!C80,SOLICITUDES!$J$2:$J$1048576) -> 0 | P80: 0 | Q80: =SUMIF(SOLICITUDES!$C$2:$C$1048576,BD!C80,SOLICITUDES!$K$2:$K$1048576) -> 0 | R80: 0
C81: T23154 | D81: 5 | E81: 13200 | F81: 240 | G81: -76.46191343 | H81: 2.712426488 | I81: 2.5 | J81: 2.5 | K81: 1 | L81: 1 | M81: =SUMIF(SOLICITUDES!$C$2:$C$1048576,BD!C81,SOLICITUDES!$I$2:$I$1048576) -> 0 | N81: 0 | O81: =SUMIF(SOLICITUDES!$C$2:$C$1048576,BD!C81,SOLICITUDES!$J$2:$J$1048576) -> 0 | P81: 0 | Q81: =SUMIF(SOLICITUDES!$C$2:$C$1048576,BD!C81,SOLICITUDES!$K$2:$K$1048576) -> 0 | R81: 0
C82: T23149 | D82: 5 | E82: 13200 | F82: 240 | G82: -76.47487082 | H82: 2.695317318 | I82: 2.5 | J82: 2.5 | K82: 1 | L82: 1 | M82: =SUMIF(SOLICITUDES!$C$2:$C$1048576,BD!C82,SOLICITUDES!$I$2:$I$1048576) -> 0 | N82: 0 | O82: =SUMIF(SOLICITUDES!$C$2:$C$1048576,BD!C82,SOLICITUDES!$J$2:$J$1048576) -> 0 | P82: 0 | Q82: =SUMIF(SOLICITUDES!$C$2:$C$1048576,BD!C82,SOLICITUDES!$K$2:$K$1048576) -> 0 | R82: 0
C83: T23169 | D83: 5 | E83: 13200 | F83: 240 | G83: -76.48421919 | H83: 2.735425385 | I83: 2.5 | J83: 2.5 | K83: 1 | L83: 1 | M83: =SUMIF(SOLICITUDES!$C$2:$C$1048576,BD!C83,SOLICITUDES!$I$2:$I$1048576) -> 0 | N83: 0 | O83: =SUMIF(SOLICITUDES!$C$2:$C$1048576,BD!C83,SOLICITUDES!$J$2:$J$1048576) -> 0 | P83: 0 | Q83: =SUMIF(SOLICITUDES!$C$2:$C$1048576,BD!C83,SOLICITUDES!$K$2:$K$1048576) -> 0 | R83: 0
C84: T23167 | D84: 5 | E84: 13200 | F84: 240 | G84: -76.47566669 | H84: 2.736014811 | I84: 2.5 | J84: 2.5 | K84: 1 | L84: 1 | M84: =SUMIF(SOLICITUDES!$C$2:$C$1048576,BD!C84,SOLICITUDES!$I$2:$I$1048576) -> 0 | N84: 0 | O84: =SUMIF(SOLICITUDES!$C$2:$C$1048576,BD!C84,SOLICITUDES!$J$2:$J$1048576) -> 0 | P84: 0 | Q84: =SUMIF(SOLICITUDES!$C$2:$C$1048576,BD!C84,SOLICITUDES!$K$2:$K$1048576) -> 0 | R84: 0
C85: T23170 | D85: 10 | E85: 13200 | F85: 240 | G85: -76.48257688 | H85: 2.738339617 | I85: 5 | J85: 5 | K85: 2 | L85: 2 | M85: =SUMIF(SOLICITUDES!$C$2:$C$1048576,BD!C85,SOLICITUDES!$I$2:$I$1048576) -> 0 | N85: 0 | O85: =SUMIF(SOLICITUDES!$C$2:$C$1048576,BD!C85,SOLICITUDES!$J$2:$J$1048576) -> 0 | P85: 0 | Q85: =SUMIF(SOLICITUDES!$C$2:$C$1048576,BD!C85,SOLICITUDES!$K$2:$K$1048576) -> 0 | R85: 0
C86: T23150 | D86: 15 | E86: 13200 | F86: 240 | G86: -76.47439847 | H86: 2.691428926 | I86: 7.5 | J86: 7.5 | K86: 3 | L86: 3 | M86: =SUMIF(SOLICITUDES!$C$2:$C$1048576,BD!C86,SOLICITUDES!$I$2:$I$1048576) -> 0 | N86: 0 | O86: =SUMIF(SOLICITUDES!$C$2:$C$1048576,BD!C86,SOLICITUDES!$J$2:$J$1048576) -> 0 | P86: 0 | Q86: =SUMIF(SOLICITUDES!$C$2:$C$1048576,BD!C86,SOLICITUDES!$K$2:$K$1048576) -> 0 | R86: 0
C87: T23151 | D87: 10 | E87: 13200 | F87: 240 | G87: -76.46735248 | H87: 2.691370479 | I87: 5 | J87: 5 | K87: 2 | L87: 2 | M87: =SUMIF(SOLICITUDES!$C$2:$C$1048576,BD!C87,SOLICITUDES!$I$2:$I$1048576) -> 0 | N87: 0 | O87: =SUMIF(SOLICITUDES!$C$2:$C$1048576,BD!C87,SOLICITUDES!$J$2:$J$1048576) -> 0 | P87: 0 | Q87: =SUMIF(SOLICITUDES!$C$2:$C$1048576,BD!C87,SOLICITUDES!$K$2:$K$1048576) -> 0 | R87: 0
C88: T23172 | D88: 5 | E88: 13200 | F88: 240 | G88: -76.48489374 | H88: 2.742732148 | I88: 2.5 | J88: 2.5 | K88: 1 | L88: 1 | M88: =SUMIF(SOLICITUDES!$C$2:$C$1048576,BD!C88,SOLICITUDES!$I$2:$I$1048576) -> 0 | N88: 0 | O88: =SUMIF(SOLICITUDES!$C$2:$C$1048576,BD!C88,SOLICITUDES!$J$2:$J$1048576) -> 0 | P88: 0 | Q88: =SUMIF(SOLICITUDES!$C$2:$C$1048576,BD!C88,SOLICITUDES!$K$2:$K$1048576) -> 0 | R88: 0
C89: T23171 | D89: 10 | E89: 13200 | F89: 240 | G89: -76.48261819 | H89: 2.742671675 | I89: 5 | J89: 5 | K89: 2 | L89: 2 | M89: =SUMIF(SOLICITUDES!$C$2:$C$1048576,BD!C89,SOLICITUDES!$I$2:$I$1048576) -> 0 | N89: 0 | O89: =SUMIF(SOLICITUDES!$C$2:$C$1048576,BD!C89,SOLICITUDES!$J$2:$J$1048576) -> 0 | P89: 0 | Q89: =SUMIF(SOLICITUDES!$C$2:$C$1048576,BD!C89,SOLICITUDES!$K$2:$K$1048576) -> 0 | R89: 0
C90: T21160 | D90: 30 | E90: 13200 | F90: 240 | G90: -76.38349603 | H90: 2.6115233 | I90: 15 | J90: 15 | K90: 6 | L90: 6 | M90: =SUMIF(SOLICITUDES!$C$2:$C$1048576,BD!C90,SOLICITUDES!$I$2:$I$1048576) -> 0 | N90: 0 | O90: =SUMIF(SOLICITUDES!$C$2:$C$1048576,BD!C90,SOLICITUDES!$J$2:$J$1048576) -> 0 | P90: 0 | Q90: =SUMIF(SOLICITUDES!$C$2:$C$1048576,BD!C90,SOLICITUDES!$K$2:$K$1048576) -> 0 | R90: 0
C91: T22583 | D91: 25 | E91: 13200 | F91: 240 | G91: -77.04705103 | H91: 2.174832703 | I91: 12.5 | J91: 12.5 | K91: 5 | L91: 5 | M91: =SUMIF(SOLICITUDES!$C$2:$C$1048576,BD!C91,SOLICITUDES!$I$2:$I$1048576) -> 0 | N91: 0 | O91: =SUMIF(SOLICITUDES!$C$2:$C$1048576,BD!C91,SOLICITUDES!$J$2:$J$1048576) -> 0 | P91: 0 | Q91: =SUMIF(SOLICITUDES!$C$2:$C$1048576,BD!C91,SOLICITUDES!$K$2:$K$1048576) -> 0 | R91: 0
C92: T31881 | D92: 10 | E92: 13200 | F92: 240 | G92: -76.99591692 | H92: 2.221591989 | I92: 5 | J92: 5 | K92: 2 | L92: 2 | M92: =SUMIF(SOLICITUDES!$C$2:$C$1048576,BD!C92,SOLICITUDES!$I$2:$I$1048576) -> 0 | N92: 0 | O92: =SUMIF(SOLICITUDES!$C$2:$C$1048576,BD!C92,SOLICITUDES!$J$2:$J$1048576) -> 0 | P92: 0 | Q92: =SUMIF(SOLICITUDES!$C$2:$C$1048576,BD!C92,SOLICITUDES!$K$2:$K$1048576) -> 0 | R92: 0
C93: T22319 | D93: 15 | E93: 13200 | F93: 240 | G93: -77.04930502 | H93: 2.163270789 | I93: 7.5 | J93: 7.5 | K93: 3 | L93: 3 | M93: =SUMIF(SOLICITUDES!$C$2:$C$1048576,BD!C93,SOLICITUDES!$I$2:$I$1048576) -> 0 | N93: 0 | O93: =SUMIF(SOLICITUDES!$C$2:$C$1048576,BD!C93,SOLICITUDES!$J$2:$J$1048576) -> 0 | P93: 0 | Q93: =SUMIF(SOLICITUDES!$C$2:$C$1048576,BD!C93,SOLICITUDES!$K$2:$K$1048576) -> 0 | R93: 0
C94: T44747 | D94: 10 | E94: 13200 | F94: 240 | G94: -77.00937815 | H94: 2.233424875 | I94: 5 | J94: 5 | K94: 2 | L94: 2 | M94: =SUMIF(SOLICITUDES!$C$2:$C$1048576,BD!C94,SOLICITUDES!$I$2:$I$1048576) -> 0 | N94: 0 | O94: =SUMIF(SOLICITUDES!$C$2:$C$1048576,BD!C94,SOLICITUDES!$J$2:$J$1048576) -> 0 | P94: 0 | Q94: =SUMIF(SOLICITUDES!$C$2:$C$1048576,BD!C94,SOLICITUDES!$K$2:$K$1048576) -> 0 | R94: 0
C95: T29215 | D95: 10 | E95: 13200 | F95: 240 | G95: -76.99678136 | H95: 2.227642381 | I95: 5 | J95: 5 | K95: 2 | L95: 2 | M95: =SUMIF(SOLICITUDES!$C$2:$C$1048576,BD!C95,SOLICITUDES!$I$2:$I$1048576) -> 0 | N95: 0 | O95: =SUMIF(SOLICITUDES!$C$2:$C$1048576,BD!C95,SOLICITUDES!$J$2:$J$1048576) -> 0 | P95: 0 | Q95: =SUMIF(SOLICITUDES!$C$2:$C$1048576,BD!C95,SOLICITUDES!$K$2:$K$1048576) -> 0 | R95: 0
C96: T22320 | D96: 15 | E96: 13200 | F96: 240 | G96: -77.05033372 | H96: 2.161704944 | I96: 7.5 | J96: 7.5 | K96: 3 | L96: 3 | M96: =SUMIF(SOLICITUDES!$C$2:$C$1048576,BD!C96,SOLICITUDES!$I$2:$I$1048576) -> 0 | N96: 0 | O96: =SUMIF(SOLICITUDES!$C$2:$C$1048576,BD!C96,SOLICITUDES!$J$2:$J$1048576) -> 0 | P96: 0 | Q96: =SUMIF(SOLICITUDES!$C$2:$C$1048576,BD!C96,SOLICITUDES!$K$2:$K$1048576) -> 0 | R96: 0
C97: T29213 | D97: 5 | E97: 13200 | F97: 240 | G97: -76.99728994 | H97: 2.218103776 | I97: 2.5 | J97: 2.5 | K97: 1 | L97: 1 | M97: =SUMIF(SOLICITUDES!$C$2:$C$1048576,BD!C97,SOLICITUDES!$I$2:$I$1048576) -> 0 | N97: 0 | O97: =SUMIF(SOLICITUDES!$C$2:$C$1048576,BD!C97,SOLICITUDES!$J$2:$J$1048576) -> 0 | P97: 0 | Q97: =SUMIF(SOLICITUDES!$C$2:$C$1048576,BD!C97,SOLICITUDES!$K$2:$K$1048576) -> 0 | R97: 0
C98: T9549 | D98: 37.5 | E98: 34500 | F98: 240 | G98: -77.03862462 | H98: 2.165432876 | I98: 18.75 | J98: 18.75 | K98: 7.5 | L98: 7.5 | M98: =SUMIF(SOLICITUDES!$C$2:$C$1048576,BD!C98,SOLICITUDES!$I$2:$I$1048576) -> 0 | N98: 0 | O98: =SUMIF(SOLICITUDES!$C$2:$C$1048576,BD!C98,SOLICITUDES!$J$2:$J$1048576) -> 0 | P98: 0 | Q98: =SUMIF(SOLICITUDES!$C$2:$C$1048576,BD!C98,SOLICITUDES!$K$2:$K$1048576) -> 0 | R98: 0
C99: T44748 | D99: 10 | E99: 13200 | F99: 240 | G99: -77.0175467 | H99: 2.240360616 | I99: 5 | J99: 5 | K99: 2 | L99: 2 | M99: =SUMIF(SOLICITUDES!$C$2:$C$1048576,BD!C99,SOLICITUDES!$I$2:$I$1048576) -> 0 | N99: 0 | O99: =SUMIF(SOLICITUDES!$C$2:$C$1048576,BD!C99,SOLICITUDES!$J$2:$J$1048576) -> 0 | P99: 0 | Q99: =SUMIF(SOLICITUDES!$C$2:$C$1048576,BD!C99,SOLICITUDES!$K$2:$K$1048576) -> 0 | R99: 0
C100: T43283 | D100: 25 | E100: 13200 | F100: 240 | G100: -76.95610851 | H100: 2.19338731 | I100: 12.5 | J100: 12.5 | K100: 5 | L100: 5 | M100: =SUMIF(SOLICITUDES!$C$2:$C$1048576,BD!C100,SOLICITUDES!$I$2:$I$1048576) -> 0 | N100: 0 | O100: =SUMIF(SOLICITUDES!$C$2:$C$1048576,BD!C100,SOLICITUDES!$J$2:$J$1048576) -> 0 | P100: 0 | Q100: =SUMIF(SOLICITUDES!$C$2:$C$1048576,BD!C100,SOLICITUDES!$K$2:$K$1048576) -> 0 | R100: 0
C101: T29216 | D101: 5 | E101: 13200 | F101: 240 | G101: -76.99439382 | H101: 2.233570237 | I101: 2.5 | J101: 2.5 | K101: 1 | L101: 1 | M101: =SUMIF(SOLICITUDES!$C$2:$C$1048576,BD!C101,SOLICITUDES!$I$2:$I$1048576) -> 0 | N101: 0 | O101: =SUMIF(SOLICITUDES!$C$2:$C$1048576,BD!C101,SOLICITUDES!$J$2:$J$1048576) -> 0 | P101: 0 | Q101: =SUMIF(SOLICITUDES!$C$2:$C$1048576,BD!C101,SOLICITUDES!$K$2:$K$1048576) -> 0 | R101: 0
C102: T42318 | D102: 10 | E102: 13200 | F102: 240 | G102: -77.05128148 | H102: 2.16004104 | I102: 5 | J102: 5 | K102: 2 | L102: 2 | M102: =SUMIF(SOLICITUDES!$C$2:$C$1048576,BD!C102,SOLICITUDES!$I$2:$I$1048576) -> 0 | N102: 0 | O102: =SUMIF(SOLICITUDES!$C$2:$C$1048576,BD!C102,SOLICITUDES!$J$2:$J$1048576) -> 0 | P102: 0 | Q102: =SUMIF(SOLICITUDES!$C$2:$C$1048576,BD!C102,SOLICITUDES!$K$2:$K$1048576) -> 0 | R102: 0
C103: T22314 | D103: 10 | E103: 13200 | F103: 240 | G103: -76.96047107 | H103: 2.195419965 | I103: 5 | J103: 5 | K103: 2 | L103: 2 | M103: =SUMIF(SOLICITUDES!$C$2:$C$1048576,BD!C103,SOLICITUDES!$I$2:$I$1048576) -> 0 | N103: 0 | O103: =SUMIF(SOLICITUDES!$C$2:$C$1048576,BD!C103,SOLICITUDES!$J$2:$J$1048576) -> 0 | P103: 0 | Q103: =SUMIF(SOLICITUDES!$C$2:$C$1048576,BD!C103,SOLICITUDES!$K$2:$K$1048576) -> 0 | R103: 0
C104: T21278 | D104: 5 | E104: 13200 | F104: 240 | G104: -76.95546989 | H104: 2.204369518 | I104: 2.5 | J104: 2.5 | K104: 1 | L104: 1 | M104: =SUMIF(SOLICITUDES!$C$2:$C$1048576,BD!C104,SOLICITUDES!$I$2:$I$1048576) -> 0 | N104: 0 | O104: =SUMIF(SOLICITUDES!$C$2:$C$1048576,BD!C104,SOLICITUDES!$J$2:$J$1048576) -> 0 | P104: 0 | Q104: =SUMIF(SOLICITUDES!$C$2:$C$1048576,BD!C104,SOLICITUDES!$K$2:$K$1048576) -> 0 | R104: 0
C105: T44749 | D105: 10 | E105: 13200 | F105: 240 | G105: -77.02018792 | H105: 2.246435974 | I105: 5 | J105: 5 | K105: 2 | L105: 2 | M105: =SUMIF(SOLICITUDES!$C$2:$C$1048576,BD!C105,SOLICITUDES!$I$2:$I$1048576) -> 0 | N105: 0 | O105: =SUMIF(SOLICITUDES!$C$2:$C$1048576,BD!C105,SOLICITUDES!$J$2:$J$1048576) -> 0 | P105: 0 | Q105: =SUMIF(SOLICITUDES!$C$2:$C$1048576,BD!C105,SOLICITUDES!$K$2:$K$1048576) -> 0 | R105: 0
C106: T29217 | D106: 5 | E106: 13200 | F106: 240 | G106: -76.99125439 | H106: 2.237852244 | I106: 2.5 | J106: 2.5 | K106: 1 | L106: 1 | M106: =SUMIF(SOLICITUDES!$C$2:$C$1048576,BD!C106,SOLICITUDES!$I$2:$I$1048576) -> 0 | N106: 0 | O106: =SUMIF(SOLICITUDES!$C$2:$C$1048576,BD!C106,SOLICITUDES!$J$2:$J$1048576) -> 0 | P106: 0 | Q106: =SUMIF(SOLICITUDES!$C$2:$C$1048576,BD!C106,SOLICITUDES!$K$2:$K$1048576) -> 0 | R106: 0
C107: T31880 | D107: 5 | E107: 13200 | F107: 240 | G107: -76.99534533 | H107: 2.23825246 | I107: 2.5 | J107: 2.5 | K107: 1 | L107: 1 | M107: =SUMIF(SOLICITUDES!$C$2:$C$1048576,BD!C107,SOLICITUDES!$I$2:$I$1048576) -> 0 | N107: 0 | O107: =SUMIF(SOLICITUDES!$C$2:$C$1048576,BD!C107,SOLICITUDES!$J$2:$J$1048576) -> 0 | P107: 0 | Q107: =SUMIF(SOLICITUDES!$C$2:$C$1048576,BD!C107,SOLICITUDES!$K$2:$K$1048576) -> 0 | R107: 0
C108: T22321 | D108: 15 | E108: 13200 | F108: 240 | G108: -77.05227065 | H108: 2.158364296 | I108: 7.5 | J108: 7.5 | K108: 3 | L108: 3 | M108: =SUMIF(SOLICITUDES!$C$2:$C$1048576,BD!C108,SOLICITUDES!$I$2:$I$1048576) -> 0 | N108: 0 | O108: =SUMIF(SOLICITUDES!$C$2:$C$1048576,BD!C108,SOLICITUDES!$J$2:$J$1048576) -> 0 | P108: 0 | Q108: =SUMIF(SOLICITUDES!$C$2:$C$1048576,BD!C108,SOLICITUDES!$K$2:$K$1048576) -> 0 | R108: 0
C109: T22316 | D109: 15 | E109: 13200 | F109: 240 | G109: -76.98924794 | H109: 2.1910847 | I109: 7.5 | J109: 7.5 | K109: 3 | L109: 3 | M109: =SUMIF(SOLICITUDES!$C$2:$C$1048576,BD!C109,SOLICITUDES!$I$2:$I$1048576) -> 0 | N109: 0 | O109: =SUMIF(SOLICITUDES!$C$2:$C$1048576,BD!C109,SOLICITUDES!$J$2:$J$1048576) -> 0 | P109: 0 | Q109: =SUMIF(SOLICITUDES!$C$2:$C$1048576,BD!C109,SOLICITUDES!$K$2:$K$1048576) -> 0 | R109: 0
C110: T9552 | D110: 10 | E110: 34500 | F110: 240 | G110: -77.03893736 | H110: 2.170784981 | I110: 5 | J110: 5 | K110: 2 | L110: 2 | M110: =SUMIF(SOLICITUDES!$C$2:$C$1048576,BD!C110,SOLICITUDES!$I$2:$I$1048576) -> 0 | N110: 0 | O110: =SUMIF(SOLICITUDES!$C$2:$C$1048576,BD!C110,SOLICITUDES!$J$2:$J$1048576) -> 0 | P110: 0 | Q110: =SUMIF(SOLICITUDES!$C$2:$C$1048576,BD!C110,SOLICITUDES!$K$2:$K$1048576) -> 0 | R110: 0
C111: T44750 | D111: 10 | E111: 13200 | F111: 240 | G111: -77.01685572 | H111: 2.251241966 | I111: 5 | J111: 5 | K111: 2 | L111: 2 | M111: =SUMIF(SOLICITUDES!$C$2:$C$1048576,BD!C111,SOLICITUDES!$I$2:$I$1048576) -> 0 | N111: 0 | O111: =SUMIF(SOLICITUDES!$C$2:$C$1048576,BD!C111,SOLICITUDES!$J$2:$J$1048576) -> 0 | P111: 0 | Q111: =SUMIF(SOLICITUDES!$C$2:$C$1048576,BD!C111,SOLICITUDES!$K$2:$K$1048576) -> 0 | R111: 0
C112: T19770 | D112: 25 | E112: 13200 | F112: 240 | G112: -77.01811089 | H112: 2.186039421 | I112: 12.5 | J112: 12.5 | K112: 5 | L112: 5 | M112: =SUMIF(SOLICITUDES!$C$2:$C$1048576,BD!C112,SOLICITUDES!$I$2:$I$1048576) -> 0 | N112: 0 | O112: =SUMIF(SOLICITUDES!$C$2:$C$1048576,BD!C112,SOLICITUDES!$J$2:$J$1048576) -> 0 | P112: 0 | Q112: =SUMIF(SOLICITUDES!$C$2:$C$1048576,BD!C112,SOLICITUDES!$K$2:$K$1048576) -> 0 | R112: 0
C113: T31861 | D113: 10 | E113: 13200 | F113: 240 | G113: -76.99187966 | H113: 2.244136394 | I113: 5 | J113: 5 | K113: 2 | L113: 2 | M113: =SUMIF(SOLICITUDES!$C$2:$C$1048576,BD!C113,SOLICITUDES!$I$2:$I$1048576) -> 0 | N113: 0 | O113: =SUMIF(SOLICITUDES!$C$2:$C$1048576,BD!C113,SOLICITUDES!$J$2:$J$1048576) -> 0 | P113: 0 | Q113: =SUMIF(SOLICITUDES!$C$2:$C$1048576,BD!C113,SOLICITUDES!$K$2:$K$1048576) -> 0 | R113: 0
C114: T21280 | D114: 5 | E114: 13200 | F114: 240 | G114: -76.95120791 | H114: 2.211924607 | I114: 2.5 | J114: 2.5 | K114: 1 | L114: 1 | M114: =SUMIF(SOLICITUDES!$C$2:$C$1048576,BD!C114,SOLICITUDES!$I$2:$I$1048576) -> 0 | N114: 0 | O114: =SUMIF(SOLICITUDES!$C$2:$C$1048576,BD!C114,SOLICITUDES!$J$2:$J$1048576) -> 0 | P114: 0 | Q114: =SUMIF(SOLICITUDES!$C$2:$C$1048576,BD!C114,SOLICITUDES!$K$2:$K$1048576) -> 0 | R114: 0
C115: T31862 | D115: 10 | E115: 13200 | F115: 240 | G115: -77.00413783 | H115: 2.245864383 | I115: 5 | J115: 5 | K115: 2 | L115: 2 | M115: =SUMIF(SOLICITUDES!$C$2:$C$1048576,BD!C115,SOLICITUDES!$I$2:$I$1048576) -> 0 | N115: 0 | O115: =SUMIF(SOLICITUDES!$C$2:$C$1048576,BD!C115,SOLICITUDES!$J$2:$J$1048576) -> 0 | P115: 0 | Q115: =SUMIF(SOLICITUDES!$C$2:$C$1048576,BD!C115,SOLICITUDES!$K$2:$K$1048576) -> 0 | R115: 0
C116: T31863 | D116: 10 | E116: 13200 | F116: 240 | G116: -76.9897579 | H116: 2.249641408 | I116: 5 | J116: 5 | K116: 2 | L116: 2 | M116: =SUMIF(SOLICITUDES!$C$2:$C$1048576,BD!C116,SOLICITUDES!$I$2:$I$1048576) -> 0 | N116: 0 | O116: =SUMIF(SOLICITUDES!$C$2:$C$1048576,BD!C116,SOLICITUDES!$J$2:$J$1048576) -> 0 | P116: 0 | Q116: =SUMIF(SOLICITUDES!$C$2:$C$1048576,BD!C116,SOLICITUDES!$K$2:$K$1048576) -> 0 | R116: 0
C117: T44755 | D117: 10 | E117: 13200 | F117: 240 | G117: -76.99992309 | H117: 2.248987243 | I117: 5 | J117: 5 | K117: 2 | L117: 2 | M117: =SUMIF(SOLICITUDES!$C$2:$C$1048576,BD!C117,SOLICITUDES!$I$2:$I$1048576) -> 0 | N117: 0 | O117: =SUMIF(SOLICITUDES!$C$2:$C$1048576,BD!C117,SOLICITUDES!$J$2:$J$1048576) -> 0 | P117: 0 | Q117: =SUMIF(SOLICITUDES!$C$2:$C$1048576,BD!C117,SOLICITUDES!$K$2:$K$1048576) -> 0 | R117: 0
C118: T21279 | D118: 10 | E118: 13200 | F118: 240 | G118: -76.94413347 | H118: 2.204447212 | I118: 5 | J118: 5 | K118: 2 | L118: 2 | M118: =SUMIF(SOLICITUDES!$C$2:$C$1048576,BD!C118,SOLICITUDES!$I$2:$I$1048576) -> 0 | N118: 0 | O118: =SUMIF(SOLICITUDES!$C$2:$C$1048576,BD!C118,SOLICITUDES!$J$2:$J$1048576) -> 0 | P118: 0 | Q118: =SUMIF(SOLICITUDES!$C$2:$C$1048576,BD!C118,SOLICITUDES!$K$2:$K$1048576) -> 0 | R118: 0
C119: T22323 | D119: 25 | E119: 13200 | F119: 240 | G119: -77.07005209 | H119: 2.108919625 | I119: 12.5 | J119: 12.5 | K119: 5 | L119: 5 | M119: =SUMIF(SOLICITUDES!$C$2:$C$1048576,BD!C119,SOLICITUDES!$I$2:$I$1048576) -> 0 | N119: 0 | O119: =SUMIF(SOLICITUDES!$C$2:$C$1048576,BD!C119,SOLICITUDES!$J$2:$J$1048576) -> 0 | P119: 0 | Q119: =SUMIF(SOLICITUDES!$C$2:$C$1048576,BD!C119,SOLICITUDES!$K$2:$K$1048576) -> 0 | R119: 0
C120: T28728 | D120: 0.5 | E120: 13200 | F120: 240 | G120: -76.5651435 | H120: 2.491087458 | I120: 0.25 | J120: 0.25 | K120: 0.1 | L120: 0.1 | M120: =SUMIF(SOLICITUDES!$C$2:$C$1048576,BD!C120,SOLICITUDES!$I$2:$I$1048576) -> 0 | N120: 0 | O120: =SUMIF(SOLICITUDES!$C$2:$C$1048576,BD!C120,SOLICITUDES!$J$2:$J$1048576) -> 0 | P120: 0 | Q120: =SUMIF(SOLICITUDES!$C$2:$C$1048576,BD!C120,SOLICITUDES!$K$2:$K$1048576) -> 0 | R120: 0
C121: T2157 | D121: 75 | E121: 13200 | F121: 208 | G121: -76.56687792 | H121: 2.489336768 | I121: 37.5 | J121: 37.5 | K121: 15 | L121: 15 | M121: =SUMIF(SOLICITUDES!$C$2:$C$1048576,BD!C121,SOLICITUDES!$I$2:$I$1048576) -> 0 | N121: 0 | O121: =SUMIF(SOLICITUDES!$C$2:$C$1048576,BD!C121,SOLICITUDES!$J$2:$J$1048576) -> 0 | P121: 0 | Q121: =SUMIF(SOLICITUDES!$C$2:$C$1048576,BD!C121,SOLICITUDES!$K$2:$K$1048576) -> 0 | R121: 0
C122: T35894 | D122: 37.5 | E122: 13200 | F122: 240 | G122: -76.56901788 | H122: 2.489229084 | I122: 18.75 | J122: 18.75 | K122: 7.5 | L122: 7.5 | M122: =SUMIF(SOLICITUDES!$C$2:$C$1048576,BD!C122,SOLICITUDES!$I$2:$I$1048576) -> 0 | N122: 0 | O122: =SUMIF(SOLICITUDES!$C$2:$C$1048576,BD!C122,SOLICITUDES!$J$2:$J$1048576) -> 0 | P122: 0 | Q122: =SUMIF(SOLICITUDES!$C$2:$C$1048576,BD!C122,SOLICITUDES!$K$2:$K$1048576) -> 0 | R122: 0
C123: T2134 | D123: 112.5 | E123: 13200 | F123: 208 | G123: -76.56918971 | H123: 2.486615681 | I123: 56.25 | J123: 56.25 | K123: 22.5 | L123: 22.5 | M123: =SUMIF(SOLICITUDES!$C$2:$C$1048576,BD!C123,SOLICITUDES!$I$2:$I$1048576) -> 0 | N123: 0 | O123: =SUMIF(SOLICITUDES!$C$2:$C$1048576,BD!C123,SOLICITUDES!$J$2:$J$1048576) -> 0 | P123: 0 | Q123: =SUMIF(SOLICITUDES!$C$2:$C$1048576,BD!C123,SOLICITUDES!$K$2:$K$1048576) -> 0 | R123: 0
C124: T2113 | D124: 37.5 | E124: 13200 | F124: 240 | G124: -76.5685519 | H124: 2.485168522 | I124: 18.75 | J124: 18.75 | K124: 7.5 | L124: 7.5 | M124: =SUMIF(SOLICITUDES!$C$2:$C$1048576,BD!C124,SOLICITUDES!$I$2:$I$1048576) -> 0 | N124: 0 | O124: =SUMIF(SOLICITUDES!$C$2:$C$1048576,BD!C124,SOLICITUDES!$J$2:$J$1048576) -> 0 | P124: 0 | Q124: =SUMIF(SOLICITUDES!$C$2:$C$1048576,BD!C124,SOLICITUDES!$K$2:$K$1048576) -> 0 | R124: 0
C125: T30253 | D125: 37.5 | E125: 13200 | F125: 240 | G125: -76.56895457 | H125: 2.490154308 | I125: 18.75 | J125: 18.75 | K125: 7.5 | L125: 7.5 | M125: =SUMIF(SOLICITUDES!$C$2:$C$1048576,BD!C125,SOLICITUDES!$I$2:$I$1048576) -> 0 | N125: 0 | O125: =SUMIF(SOLICITUDES!$C$2:$C$1048576,BD!C125,SOLICITUDES!$J$2:$J$1048576) -> 0 | P125: 0 | Q125: =SUMIF(SOLICITUDES!$C$2:$C$1048576,BD!C125,SOLICITUDES!$K$2:$K$1048576) -> 0 | R125: 0
C126: T2283 | D126: 25 | E126: 13200 | F126: 240 | G126: -76.5647015 | H126: 2.490755682 | I126: 12.5 | J126: 12.5 | K126: 5 | L126: 5 | M126: =SUMIF(SOLICITUDES!$C$2:$C$1048576,BD!C126,SOLICITUDES!$I$2:$I$1048576) -> 0 | N126: 0 | O126: =SUMIF(SOLICITUDES!$C$2:$C$1048576,BD!C126,SOLICITUDES!$J$2:$J$1048576) -> 0 | P126: 0 | Q126: =SUMIF(SOLICITUDES!$C$2:$C$1048576,BD!C126,SOLICITUDES!$K$2:$K$1048576) -> 0 | R126: 0
C127: T2149 | D127: 45 | E127: 13200 | F127: 208 | G127: -76.56677936 | H127: 2.488459542 | I127: 22.5 | J127: 22.5 | K127: 9 | L127: 9 | M127: =SUMIF(SOLICITUDES!$C$2:$C$1048576,BD!C127,SOLICITUDES!$I$2:$I$1048576) -> 0 | N127: 0 | O127: =SUMIF(SOLICITUDES!$C$2:$C$1048576,BD!C127,SOLICITUDES!$J$2:$J$1048576) -> 0 | P127: 0 | Q127: =SUMIF(SOLICITUDES!$C$2:$C$1048576,BD!C127,SOLICITUDES!$K$2:$K$1048576) -> 0 | R127: 0
C128: T2156 | D128: 45 | E128: 13200 | F128: 208 | G128: -76.56996327 | H128: 2.485820182 | I128: 22.5 | J128: 22.5 | K128: 9 | L128: 9 | M128: =SUMIF(SOLICITUDES!$C$2:$C$1048576,BD!C128,SOLICITUDES!$I$2:$I$1048576) -> 0 | N128: 0 | O128: =SUMIF(SOLICITUDES!$C$2:$C$1048576,BD!C128,SOLICITUDES!$J$2:$J$1048576) -> 0 | P128: 0 | Q128: =SUMIF(SOLICITUDES!$C$2:$C$1048576,BD!C128,SOLICITUDES!$K$2:$K$1048576) -> 0 | R128: 0
C129: T2148 | D129: 75 | E129: 13200 | F129: 208 | G129: -76.56858832 | H129: 2.483983884 | I129: 37.5 | J129: 37.5 | K129: 15 | L129: 15 | M129: =SUMIF(SOLICITUDES!$C$2:$C$1048576,BD!C129,SOLICITUDES!$I$2:$I$1048576) -> 0 | N129: 0 | O129: =SUMIF(SOLICITUDES!$C$2:$C$1048576,BD!C129,SOLICITUDES!$J$2:$J$1048576) -> 0 | P129: 0 | Q129: =SUMIF(SOLICITUDES!$C$2:$C$1048576,BD!C129,SOLICITUDES!$K$2:$K$1048576) -> 0 | R129: 0
C130: T2136 | D130: 75 | E130: 13200 | F130: 208 | G130: -76.56606012 | H130: 2.488332649 | I130: 37.5 | J130: 37.5 | K130: 15 | L130: 15 | M130: =SUMIF(SOLICITUDES!$C$2:$C$1048576,BD!C130,SOLICITUDES!$I$2:$I$1048576) -> 0 | N130: 0 | O130: =SUMIF(SOLICITUDES!$C$2:$C$1048576,BD!C130,SOLICITUDES!$J$2:$J$1048576) -> 0 | P130: 0 | Q130: =SUMIF(SOLICITUDES!$C$2:$C$1048576,BD!C130,SOLICITUDES!$K$2:$K$1048576) -> 0 | R130: 0
C131: T2109 | D131: 15 | E131: 13200 | F131: 240 | G131: -76.56863351 | H131: 2.483387051 | I131: 7.5 | J131: =D131*0.5-M131 -> 7.5 | K131: 3 | L131: 3 | M131: =SUMIF(SOLICITUDES!$C$2:$C$1048576,BD!C131,SOLICITUDES!$I$2:$I$1048576) -> 0 | N131: =M131/D131 -> 0 | O131: =SUMIF(SOLICITUDES!$C$2:$C$1048576,BD!C131,SOLICITUDES!$J$2:$J$1048576) -> 0 | P131: 0 | Q131: =SUMIF(SOLICITUDES!$C$2:$C$1048576,BD!C131,SOLICITUDES!$K$2:$K$1048576) -> 0 | R131: 0
C132: T2118 | D132: 45 | E132: 13200 | F132: 208 | G132: -76.56843278 | H132: 2.490947055 | I132: =D132*0.5 -> 22.5 | J132: 22.5 | K132: =0.2*D132 -> 9 | L132: =0.2*D132 -> 9 | M132: =SUMIF(SOLICITUDES!$C$2:$C$1048576,BD!C132,SOLICITUDES!$I$2:$I$1048576) -> 0 | N132: 0 | O132: =SUMIF(SOLICITUDES!$C$2:$C$1048576,BD!C132,SOLICITUDES!$J$2:$J$1048576) -> 0 | P132: =O132/(2*K132) -> 0 | Q132: =SUMIF(SOLICITUDES!$C$2:$C$1048576,BD!C132,SOLICITUDES!$K$2:$K$1048576) -> 0 | R132: =Q132/(2*L132) -> 0
C133: T2126 | D133: 75 | E133: 13200 | F133: 208 | G133: -76.56771341 | H133: 2.491127643 | I133: 37.5 | J133: 37.5 | K133: 15 | L133: 15 | M133: =SUMIF(SOLICITUDES!$C$2:$C$1048576,BD!C133,SOLICITUDES!$I$2:$I$1048576) -> 0 | N133: 0 | O133: =SUMIF(SOLICITUDES!$C$2:$C$1048576,BD!C133,SOLICITUDES!$J$2:$J$1048576) -> 0 | P133: 0 | Q133: =SUMIF(SOLICITUDES!$C$2:$C$1048576,BD!C133,SOLICITUDES!$K$2:$K$1048576) -> 0 | R133: 0
C134: T2103 | D134: 30 | E134: 13200 | F134: 208 | G134: -76.5703316 | H134: 2.486906166 | I134: 15 | J134: 15 | K134: 6 | L134: 6 | M134: =SUMIF(SOLICITUDES!$C$2:$C$1048576,BD!C134,SOLICITUDES!$I$2:$I$1048576) -> 0 | N134: 0 | O134: =SUMIF(SOLICITUDES!$C$2:$C$1048576,BD!C134,SOLICITUDES!$J$2:$J$1048576) -> 0 | P134: 0 | Q134: =SUMIF(SOLICITUDES!$C$2:$C$1048576,BD!C134,SOLICITUDES!$K$2:$K$1048576) -> 0 | R134: 0
C135: T2152 | D135: 45 | E135: 13200 | F135: 208 | G135: -76.56935226 | H135: 2.484779978 | I135: 22.5 | J135: 22.5 | K135: 9 | L135: 9 | M135: =SUMIF(SOLICITUDES!$C$2:$C$1048576,BD!C135,SOLICITUDES!$I$2:$I$1048576) -> 0 | N135: 0 | O135: =SUMIF(SOLICITUDES!$C$2:$C$1048576,BD!C135,SOLICITUDES!$J$2:$J$1048576) -> 0 | P135: 0 | Q135: =SUMIF(SOLICITUDES!$C$2:$C$1048576,BD!C135,SOLICITUDES!$K$2:$K$1048576) -> 0 | R135: 0
C136: T2133 | D136: 45 | E136: 13200 | F136: 208 | G136: -76.56995451 | H136: 2.485223324 | I136: 22.5 | J136: 22.5 | K136: 9 | L136: 9 | M136: =SUMIF(SOLICITUDES!$C$2:$C$1048576,BD!C136,SOLICITUDES!$I$2:$I$1048576) -> 0 | N136: 0 | O136: =SUMIF(SOLICITUDES!$C$2:$C$1048576,BD!C136,SOLICITUDES!$J$2:$J$1048576) -> 0 | P136: 0 | Q136: =SUMIF(SOLICITUDES!$C$2:$C$1048576,BD!C136,SOLICITUDES!$K$2:$K$1048576) -> 0 | R136: 0
C137: T21318 | D137: 30 | E137: 13200 | F137: 214 | G137: -76.56560372 | H137: 2.491548855 | I137: 15 | J137: 15 | K137: 6 | L137: 6 | M137: =SUMIF(SOLICITUDES!$C$2:$C$1048576,BD!C137,SOLICITUDES!$I$2:$I$1048576) -> 0 | N137: 0 | O137: =SUMIF(SOLICITUDES!$C$2:$C$1048576,BD!C137,SOLICITUDES!$J$2:$J$1048576) -> 0 | P137: 0 | Q137: =SUMIF(SOLICITUDES!$C$2:$C$1048576,BD!C137,SOLICITUDES!$K$2:$K$1048576) -> 0 | R137: 0
C138: T2127 | D138: 75 | E138: 13200 | F138: 208 | G138: -76.56572784 | H138: 2.487283518 | I138: 37.5 | J138: 37.5 | K138: 15 | L138: 15 | M138: =SUMIF(SOLICITUDES!$C$2:$C$1048576,BD!C138,SOLICITUDES!$I$2:$I$1048576) -> 0 | N138: 0 | O138: =SUMIF(SOLICITUDES!$C$2:$C$1048576,BD!C138,SOLICITUDES!$J$2:$J$1048576) -> 0 | P138: 0 | Q138: =SUMIF(SOLICITUDES!$C$2:$C$1048576,BD!C138,SOLICITUDES!$K$2:$K$1048576) -> 0 | R138: 0
C139: T2137 | D139: 75 | E139: 13200 | F139: 208 | G139: -76.57084391 | H139: 2.487104651 | I139: 37.5 | J139: 37.5 | K139: 15 | L139: 15 | M139: =SUMIF(SOLICITUDES!$C$2:$C$1048576,BD!C139,SOLICITUDES!$I$2:$I$1048576) -> 0 | N139: 0 | O139: =SUMIF(SOLICITUDES!$C$2:$C$1048576,BD!C139,SOLICITUDES!$J$2:$J$1048576) -> 0 | P139: 0 | Q139: =SUMIF(SOLICITUDES!$C$2:$C$1048576,BD!C139,SOLICITUDES!$K$2:$K$1048576) -> 0 | R139: 0
C140: T2282 | D140: 45 | E140: 13200 | F140: 208 | G140: -76.56442295 | H140: 2.490285333 | I140: 22.5 | J140: 22.5 | K140: 9 | L140: 9 | M140: =SUMIF(SOLICITUDES!$C$2:$C$1048576,BD!C140,SOLICITUDES!$I$2:$I$1048576) -> 0 | N140: 0 | O140: =SUMIF(SOLICITUDES!$C$2:$C$1048576,BD!C140,SOLICITUDES!$J$2:$J$1048576) -> 0 | P140: 0 | Q140: =SUMIF(SOLICITUDES!$C$2:$C$1048576,BD!C140,SOLICITUDES!$K$2:$K$1048576) -> 0 | R140: 0
C141: T2150 | D141: 75 | E141: 13200 | F141: 240 | G141: -76.57030203 | H141: 2.489572774 | I141: 37.5 | J141: 37.5 | K141: 15 | L141: 15 | M141: =SUMIF(SOLICITUDES!$C$2:$C$1048576,BD!C141,SOLICITUDES!$I$2:$I$1048576) -> 0 | N141: 0 | O141: =SUMIF(SOLICITUDES!$C$2:$C$1048576,BD!C141,SOLICITUDES!$J$2:$J$1048576) -> 0 | P141: 0 | Q141: =SUMIF(SOLICITUDES!$C$2:$C$1048576,BD!C141,SOLICITUDES!$K$2:$K$1048576) -> 0 | R141: 0
C142: T2130 | D142: 37.5 | E142: 13200 | F142: 240 | G142: -76.56924452 | H142: 2.484391082 | I142: 18.75 | J142: 18.75 | K142: 7.5 | L142: 7.5 | M142: =SUMIF(SOLICITUDES!$C$2:$C$1048576,BD!C142,SOLICITUDES!$I$2:$I$1048576) -> 0 | N142: 0 | O142: =SUMIF(SOLICITUDES!$C$2:$C$1048576,BD!C142,SOLICITUDES!$J$2:$J$1048576) -> 0 | P142: 0 | Q142: =SUMIF(SOLICITUDES!$C$2:$C$1048576,BD!C142,SOLICITUDES!$K$2:$K$1048576) -> 0 | R142: 0
C143: T2143 | D143: 75 | E143: 13200 | F143: 208 | G143: -76.56539562 | H143: 2.486116817 | I143: 37.5 | J143: 37.5 | K143: 15 | L143: 15 | M143: =SUMIF(SOLICITUDES!$C$2:$C$1048576,BD!C143,SOLICITUDES!$I$2:$I$1048576) -> 0 | N143: 0 | O143: =SUMIF(SOLICITUDES!$C$2:$C$1048576,BD!C143,SOLICITUDES!$J$2:$J$1048576) -> 0 | P143: 0 | Q143: =SUMIF(SOLICITUDES!$C$2:$C$1048576,BD!C143,SOLICITUDES!$K$2:$K$1048576) -> 0 | R143: 0
C144: T2285 | D144: 150 | E144: 13200 | F144: 208 | G144: -76.56361321 | H144: 2.491650523 | I144: 75 | J144: 75 | K144: 30 | L144: 30 | M144: =SUMIF(SOLICITUDES!$C$2:$C$1048576,BD!C144,SOLICITUDES!$I$2:$I$1048576) -> 0 | N144: 0 | O144: =SUMIF(SOLICITUDES!$C$2:$C$1048576,BD!C144,SOLICITUDES!$J$2:$J$1048576) -> 0 | P144: 0 | Q144: =SUMIF(SOLICITUDES!$C$2:$C$1048576,BD!C144,SOLICITUDES!$K$2:$K$1048576) -> 0 | R144: 0
C145: T2105 | D145: 75 | E145: 13200 | F145: 220 | G145: -76.57072803 | H145: 2.484482089 | I145: 37.5 | J145: 37.5 | K145: 15 | L145: 15 | M145: =SUMIF(SOLICITUDES!$C$2:$C$1048576,BD!C145,SOLICITUDES!$I$2:$I$1048576) -> 0 | N145: 0 | O145: =SUMIF(SOLICITUDES!$C$2:$C$1048576,BD!C145,SOLICITUDES!$J$2:$J$1048576) -> 0 | P145: 0 | Q145: =SUMIF(SOLICITUDES!$C$2:$C$1048576,BD!C145,SOLICITUDES!$K$2:$K$1048576) -> 0 | R145: 0
C146: T16721 | D146: 30 | E146: 13200 | F146: 214 | G146: -76.5671014 | H146: 2.49315299 | I146: 15 | J146: 15 | K146: 6 | L146: 6 | M146: =SUMIF(SOLICITUDES!$C$2:$C$1048576,BD!C146,SOLICITUDES!$I$2:$I$1048576) -> 0 | N146: 0 | O146: =SUMIF(SOLICITUDES!$C$2:$C$1048576,BD!C146,SOLICITUDES!$J$2:$J$1048576) -> 0 | P146: 0 | Q146: =SUMIF(SOLICITUDES!$C$2:$C$1048576,BD!C146,SOLICITUDES!$K$2:$K$1048576) -> 0 | R146: 0
C147: T2211 | D147: 45 | E147: 13200 | F147: 208 | G147: -76.56747295 | H147: 2.493556493 | I147: 22.5 | J147: 22.5 | K147: 9 | L147: 9 | M147: =SUMIF(SOLICITUDES!$C$2:$C$1048576,BD!C147,SOLICITUDES!$I$2:$I$1048576) -> 0 | N147: 0 | O147: =SUMIF(SOLICITUDES!$C$2:$C$1048576,BD!C147,SOLICITUDES!$J$2:$J$1048576) -> 0 | P147: 0 | Q147: =SUMIF(SOLICITUDES!$C$2:$C$1048576,BD!C147,SOLICITUDES!$K$2:$K$1048576) -> 0 | R147: 0
C148: T28564 | D148: 75 | E148: 13200 | F148: 214 | G148: -76.56858638 | H148: 2.482320398 | I148: 37.5 | J148: 37.5 | K148: 15 | L148: 15 | M148: =SUMIF(SOLICITUDES!$C$2:$C$1048576,BD!C148,SOLICITUDES!$I$2:$I$1048576) -> 0 | N148: 0 | O148: =SUMIF(SOLICITUDES!$C$2:$C$1048576,BD!C148,SOLICITUDES!$J$2:$J$1048576) -> 0 | P148: 0 | Q148: =SUMIF(SOLICITUDES!$C$2:$C$1048576,BD!C148,SOLICITUDES!$K$2:$K$1048576) -> 0 | R148: 0
C149: T30937 | D149: 15 | E149: 13200 | F149: 208 | G149: -76.57138663 | H149: 2.484433206 | I149: 7.5 | J149: 7.5 | K149: 3 | L149: 3 | M149: =SUMIF(SOLICITUDES!$C$2:$C$1048576,BD!C149,SOLICITUDES!$I$2:$I$1048576) -> 0 | N149: 0 | O149: =SUMIF(SOLICITUDES!$C$2:$C$1048576,BD!C149,SOLICITUDES!$J$2:$J$1048576) -> 0 | P149: 0 | Q149: =SUMIF(SOLICITUDES!$C$2:$C$1048576,BD!C149,SOLICITUDES!$K$2:$K$1048576) -> 0 | R149: 0
C150: T2288 | D150: 10 | E150: 13200 | F150: 240 | G150: -76.56334376 | H150: 2.49091792 | I150: 5 | J150: 5 | K150: 2 | L150: 2 | M150: =SUMIF(SOLICITUDES!$C$2:$C$1048576,BD!C150,SOLICITUDES!$I$2:$I$1048576) -> 0 | N150: 0 | O150: =SUMIF(SOLICITUDES!$C$2:$C$1048576,BD!C150,SOLICITUDES!$J$2:$J$1048576) -> 0 | P150: 0 | Q150: =SUMIF(SOLICITUDES!$C$2:$C$1048576,BD!C150,SOLICITUDES!$K$2:$K$1048576) -> 0 | R150: 0
C151: T2273 | D151: 112.5 | E151: 13200 | F151: 208 | G151: -76.56234564 | H151: 2.491134569 | I151: 56.25 | J151: 56.25 | K151: 22.5 | L151: 22.5 | M151: =SUMIF(SOLICITUDES!$C$2:$C$1048576,BD!C151,SOLICITUDES!$I$2:$I$1048576) -> 0 | N151: 0 | O151: =SUMIF(SOLICITUDES!$C$2:$C$1048576,BD!C151,SOLICITUDES!$J$2:$J$1048576) -> 0 | P151: 0 | Q151: =SUMIF(SOLICITUDES!$C$2:$C$1048576,BD!C151,SOLICITUDES!$K$2:$K$1048576) -> 0 | R151: 0
C152: T2272 | D152: 75 | E152: 13200 | F152: 208 | G152: -76.56332582 | H152: 2.490782276 | I152: 37.5 | J152: 37.5 | K152: 15 | L152: 15 | M152: =SUMIF(SOLICITUDES!$C$2:$C$1048576,BD!C152,SOLICITUDES!$I$2:$I$1048576) -> 0 | N152: 0 | O152: =SUMIF(SOLICITUDES!$C$2:$C$1048576,BD!C152,SOLICITUDES!$J$2:$J$1048576) -> 0 | P152: 0 | Q152: =SUMIF(SOLICITUDES!$C$2:$C$1048576,BD!C152,SOLICITUDES!$K$2:$K$1048576) -> 0 | R152: 0
C153: T2139 | D153: 37.5 | E153: 13200 | F153: 240 | G153: -76.57185191 | H153: 2.484536788 | I153: 18.75 | J153: 18.75 | K153: 7.5 | L153: 7.5 | M153: =SUMIF(SOLICITUDES!$C$2:$C$1048576,BD!C153,SOLICITUDES!$I$2:$I$1048576) -> 0 | N153: 0 | O153: =SUMIF(SOLICITUDES!$C$2:$C$1048576,BD!C153,SOLICITUDES!$J$2:$J$1048576) -> 0 | P153: 0 | Q153: =SUMIF(SOLICITUDES!$C$2:$C$1048576,BD!C153,SOLICITUDES!$K$2:$K$1048576) -> 0 | R153: 0
C154: T10425 | D154: 30 | E154: 13200 | F154: 214 | G154: -76.56858809 | H154: 2.481892817 | I154: 15 | J154: 15 | K154: 6 | L154: 6 | M154: =SUMIF(SOLICITUDES!$C$2:$C$1048576,BD!C154,SOLICITUDES!$I$2:$I$1048576) -> 0 | N154: 0 | O154: =SUMIF(SOLICITUDES!$C$2:$C$1048576,BD!C154,SOLICITUDES!$J$2:$J$1048576) -> 0 | P154: 0 | Q154: =SUMIF(SOLICITUDES!$C$2:$C$1048576,BD!C154,SOLICITUDES!$K$2:$K$1048576) -> 0 | R154: 0
C155: T2304 | D155: 75 | E155: 13200 | F155: 208 | G155: -76.56372132 | H155: 2.491098933 | I155: 37.5 | J155: 37.5 | K155: 15 | L155: 15 | M155: =SUMIF(SOLICITUDES!$C$2:$C$1048576,BD!C155,SOLICITUDES!$I$2:$I$1048576) -> 0 | N155: 0 | O155: =SUMIF(SOLICITUDES!$C$2:$C$1048576,BD!C155,SOLICITUDES!$J$2:$J$1048576) -> 0 | P155: 0 | Q155: =SUMIF(SOLICITUDES!$C$2:$C$1048576,BD!C155,SOLICITUDES!$K$2:$K$1048576) -> 0 | R155: 0
C156: T40021 | D156: 25 | E156: 13200 | F156: 240 | G156: -76.56859618 | H156: 2.494808646 | I156: 12.5 | J156: 12.5 | K156: 5 | L156: 5 | M156: =SUMIF(SOLICITUDES!$C$2:$C$1048576,BD!C156,SOLICITUDES!$I$2:$I$1048576) -> 0 | N156: 0 | O156: =SUMIF(SOLICITUDES!$C$2:$C$1048576,BD!C156,SOLICITUDES!$J$2:$J$1048576) -> 0 | P156: 0 | Q156: =SUMIF(SOLICITUDES!$C$2:$C$1048576,BD!C156,SOLICITUDES!$K$2:$K$1048576) -> 0 | R156: 0
C157: T40052 | D157: 112.5 | E157: 13200 | F157: 226 | G157: -76.5678518 | H157: 2.494134124 | I157: 56.25 | J157: 56.25 | K157: 22.5 | L157: 22.5 | M157: =SUMIF(SOLICITUDES!$C$2:$C$1048576,BD!C157,SOLICITUDES!$I$2:$I$1048576) -> 0 | N157: 0 | O157: =SUMIF(SOLICITUDES!$C$2:$C$1048576,BD!C157,SOLICITUDES!$J$2:$J$1048576) -> 0 | P157: 0 | Q157: =SUMIF(SOLICITUDES!$C$2:$C$1048576,BD!C157,SOLICITUDES!$K$2:$K$1048576) -> 0 | R157: 0
C158: T2231 | D158: 75 | E158: 13200 | F158: 208 | G158: -76.56906021 | H158: 2.496020511 | I158: 37.5 | J158: 37.5 | K158: 15 | L158: 15 | M158: =SUMIF(SOLICITUDES!$C$2:$C$1048576,BD!C158,SOLICITUDES!$I$2:$I$1048576) -> 0 | N158: 0 | O158: =SUMIF(SOLICITUDES!$C$2:$C$1048576,BD!C158,SOLICITUDES!$J$2:$J$1048576) -> 0 | P158: 0 | Q158: =SUMIF(SOLICITUDES!$C$2:$C$1048576,BD!C158,SOLICITUDES!$K$2:$K$1048576) -> 0 | R158: 0
C159: T2308 | D159: 112.5 | E159: 13200 | F159: 208 | G159: -76.56302855 | H159: 2.492256186 | I159: 56.25 | J159: 56.25 | K159: 22.5 | L159: 22.5 | M159: =SUMIF(SOLICITUDES!$C$2:$C$1048576,BD!C159,SOLICITUDES!$I$2:$I$1048576) -> 0 | N159: 0 | O159: =SUMIF(SOLICITUDES!$C$2:$C$1048576,BD!C159,SOLICITUDES!$J$2:$J$1048576) -> 0 | P159: 0 | Q159: =SUMIF(SOLICITUDES!$C$2:$C$1048576,BD!C159,SOLICITUDES!$K$2:$K$1048576) -> 0 | R159: 0
C160: T41506 | D160: 800 | E160: 13200 | F160: 452 | G160: -76.56877389 | H160: 2.481531859 | I160: 400 | J160: 400 | K160: 160 | L160: 160 | M160: =SUMIF(SOLICITUDES!$C$2:$C$1048576,BD!C160,SOLICITUDES!$I$2:$I$1048576) -> 0 | N160: 0 | O160: =SUMIF(SOLICITUDES!$C$2:$C$1048576,BD!C160,SOLICITUDES!$J$2:$J$1048576) -> 0 | P160: 0 | Q160: =SUMIF(SOLICITUDES!$C$2:$C$1048576,BD!C160,SOLICITUDES!$K$2:$K$1048576) -> 0 | R160: 0
C161: T19571 | D161: 30 | E161: 13200 | F161: 208 | G161: -76.57196411 | H161: 2.485131162 | I161: 15 | J161: 15 | K161: 6 | L161: 6 | M161: =SUMIF(SOLICITUDES!$C$2:$C$1048576,BD!C161,SOLICITUDES!$I$2:$I$1048576) -> 0 | N161: 0 | O161: =SUMIF(SOLICITUDES!$C$2:$C$1048576,BD!C161,SOLICITUDES!$J$2:$J$1048576) -> 0 | P161: 0 | Q161: =SUMIF(SOLICITUDES!$C$2:$C$1048576,BD!C161,SOLICITUDES!$K$2:$K$1048576) -> 0 | R161: 0
C162: T19572 | D162: 30 | E162: 13200 | F162: 220 | G162: -76.57287175 | H162: 2.48460269 | I162: 15 | J162: 15 | K162: 6 | L162: 6 | M162: =SUMIF(SOLICITUDES!$C$2:$C$1048576,BD!C162,SOLICITUDES!$I$2:$I$1048576) -> 0 | N162: 0 | O162: =SUMIF(SOLICITUDES!$C$2:$C$1048576,BD!C162,SOLICITUDES!$J$2:$J$1048576) -> 0 | P162: 0 | Q162: =SUMIF(SOLICITUDES!$C$2:$C$1048576,BD!C162,SOLICITUDES!$K$2:$K$1048576) -> 0 | R162: 0
C163: T2212 | D163: 75 | E163: 13200 | F163: 208 | G163: -76.5773379 | H163: 2.504569496 | I163: 37.5 | J163: 37.5 | K163: 15 | L163: 15 | M163: =SUMIF(SOLICITUDES!$C$2:$C$1048576,BD!C163,SOLICITUDES!$I$2:$I$1048576) -> 0 | N163: 0 | O163: =SUMIF(SOLICITUDES!$C$2:$C$1048576,BD!C163,SOLICITUDES!$J$2:$J$1048576) -> 0 | P163: 0 | Q163: =SUMIF(SOLICITUDES!$C$2:$C$1048576,BD!C163,SOLICITUDES!$K$2:$K$1048576) -> 0 | R163: 0
C164: T3020 | D164: 10 | E164: 13200 | F164: 240 | G164: -76.57159177 | H164: 2.50632166 | I164: 5 | J164: 5 | K164: 2 | L164: 2 | M164: =SUMIF(SOLICITUDES!$C$2:$C$1048576,BD!C164,SOLICITUDES!$I$2:$I$1048576) -> 0 | N164: 0 | O164: =SUMIF(SOLICITUDES!$C$2:$C$1048576,BD!C164,SOLICITUDES!$J$2:$J$1048576) -> 0 | P164: 0 | Q164: =SUMIF(SOLICITUDES!$C$2:$C$1048576,BD!C164,SOLICITUDES!$K$2:$K$1048576) -> 0 | R164: 0
C165: T3019 | D165: 10 | E165: 13200 | F165: 240 | G165: -76.57142045 | H165: 2.507560504 | I165: 5 | J165: 5 | K165: 2 | L165: 2 | M165: =SUMIF(SOLICITUDES!$C$2:$C$1048576,BD!C165,SOLICITUDES!$I$2:$I$1048576) -> 0 | N165: 0 | O165: =SUMIF(SOLICITUDES!$C$2:$C$1048576,BD!C165,SOLICITUDES!$J$2:$J$1048576) -> 0 | P165: 0 | Q165: =SUMIF(SOLICITUDES!$C$2:$C$1048576,BD!C165,SOLICITUDES!$K$2:$K$1048576) -> 0 | R165: 0
C166: T2223 | D166: 25 | E166: 13200 | F166: 240 | G166: -76.58194925 | H166: 2.507754427 | I166: 12.5 | J166: 12.5 | K166: 5 | L166: 5 | M166: =SUMIF(SOLICITUDES!$C$2:$C$1048576,BD!C166,SOLICITUDES!$I$2:$I$1048576) -> 0 | N166: 0 | O166: =SUMIF(SOLICITUDES!$C$2:$C$1048576,BD!C166,SOLICITUDES!$J$2:$J$1048576) -> 0 | P166: 0 | Q166: =SUMIF(SOLICITUDES!$C$2:$C$1048576,BD!C166,SOLICITUDES!$K$2:$K$1048576) -> 0 | R166: 0
C167: T2289 | D167: 10 | E167: 13200 | F167: 240 | G167: -76.55806206 | H167: 2.500673377 | I167: 5 | J167: 5 | K167: 2 | L167: 2 | M167: =SUMIF(SOLICITUDES!$C$2:$C$1048576,BD!C167,SOLICITUDES!$I$2:$I$1048576) -> 0 | N167: 0 | O167: =SUMIF(SOLICITUDES!$C$2:$C$1048576,BD!C167,SOLICITUDES!$J$2:$J$1048576) -> 0 | P167: 0 | Q167: =SUMIF(SOLICITUDES!$C$2:$C$1048576,BD!C167,SOLICITUDES!$K$2:$K$1048576) -> 0 | R167: 0
C168: T3078 | D168: 75 | E168: 13200 | F168: 220 | G168: -76.55861045 | H168: 2.500872544 | I168: 37.5 | J168: 37.5 | K168: 15 | L168: 15 | M168: =SUMIF(SOLICITUDES!$C$2:$C$1048576,BD!C168,SOLICITUDES!$I$2:$I$1048576) -> 0 | N168: 0 | O168: =SUMIF(SOLICITUDES!$C$2:$C$1048576,BD!C168,SOLICITUDES!$J$2:$J$1048576) -> 0 | P168: 0 | Q168: =SUMIF(SOLICITUDES!$C$2:$C$1048576,BD!C168,SOLICITUDES!$K$2:$K$1048576) -> 0 | R168: 0
C169: T2300 | D169: 75 | E169: 13200 | F169: 208 | G169: -76.55794503 | H169: 2.501035051 | I169: 37.5 | J169: 37.5 | K169: 15 | L169: 15 | M169: =SUMIF(SOLICITUDES!$C$2:$C$1048576,BD!C169,SOLICITUDES!$I$2:$I$1048576) -> 0 | N169: 0 | O169: =SUMIF(SOLICITUDES!$C$2:$C$1048576,BD!C169,SOLICITUDES!$J$2:$J$1048576) -> 0 | P169: 0 | Q169: =SUMIF(SOLICITUDES!$C$2:$C$1048576,BD!C169,SOLICITUDES!$K$2:$K$1048576) -> 0 | R169: 0
C170: T3495 | D170: 10 | E170: 13200 | F170: 240 | G170: -76.57785762 | H170: 2.509217916 | I170: 5 | J170: 5 | K170: 2 | L170: 2 | M170: =SUMIF(SOLICITUDES!$C$2:$C$1048576,BD!C170,SOLICITUDES!$I$2:$I$1048576) -> 0 | N170: 0 | O170: =SUMIF(SOLICITUDES!$C$2:$C$1048576,BD!C170,SOLICITUDES!$J$2:$J$1048576) -> 0 | P170: 0 | Q170: =SUMIF(SOLICITUDES!$C$2:$C$1048576,BD!C170,SOLICITUDES!$K$2:$K$1048576) -> 0 | R170: 0
C171: T2259 | D171: 75 | E171: 13200 | F171: 208 | G171: -76.5579 | H171: 2.501215899 | I171: 37.5 | J171: 37.5 | K171: 15 | L171: 15 | M171: =SUMIF(SOLICITUDES!$C$2:$C$1048576,BD!C171,SOLICITUDES!$I$2:$I$1048576) -> 0 | N171: 0 | O171: =SUMIF(SOLICITUDES!$C$2:$C$1048576,BD!C171,SOLICITUDES!$J$2:$J$1048576) -> 0 | P171: 0 | Q171: =SUMIF(SOLICITUDES!$C$2:$C$1048576,BD!C171,SOLICITUDES!$K$2:$K$1048576) -> 0 | R171: 0
C172: T14426 | D172: 10 | E172: 13200 | F172: 240 | G172: -76.58295957 | H172: 2.511863821 | I172: 5 | J172: 5 | K172: 2 | L172: 2 | M172: =SUMIF(SOLICITUDES!$C$2:$C$1048576,BD!C172,SOLICITUDES!$I$2:$I$1048576) -> 0 | N172: 0 | O172: =SUMIF(SOLICITUDES!$C$2:$C$1048576,BD!C172,SOLICITUDES!$J$2:$J$1048576) -> 0 | P172: 0 | Q172: =SUMIF(SOLICITUDES!$C$2:$C$1048576,BD!C172,SOLICITUDES!$K$2:$K$1048576) -> 0 | R172: 0
C173: T30191 | D173: 0.5 | E173: 13200 | F173: 240 | G173: -76.58692949 | H173: 2.510451243 | I173: 0.25 | J173: 0.25 | K173: 0.1 | L173: 0.1 | M173: =SUMIF(SOLICITUDES!$C$2:$C$1048576,BD!C173,SOLICITUDES!$I$2:$I$1048576) -> 0 | N173: 0 | O173: =SUMIF(SOLICITUDES!$C$2:$C$1048576,BD!C173,SOLICITUDES!$J$2:$J$1048576) -> 0 | P173: 0 | Q173: =SUMIF(SOLICITUDES!$C$2:$C$1048576,BD!C173,SOLICITUDES!$K$2:$K$1048576) -> 0 | R173: 0
C174: T2217 | D174: 5 | E174: 13200 | F174: 240 | G174: -76.5854735 | H174: 2.508859074 | I174: 2.5 | J174: 2.5 | K174: 1 | L174: 1 | M174: =SUMIF(SOLICITUDES!$C$2:$C$1048576,BD!C174,SOLICITUDES!$I$2:$I$1048576) -> 0 | N174: 0 | O174: =SUMIF(SOLICITUDES!$C$2:$C$1048576,BD!C174,SOLICITUDES!$J$2:$J$1048576) -> 0 | P174: 0 | Q174: =SUMIF(SOLICITUDES!$C$2:$C$1048576,BD!C174,SOLICITUDES!$K$2:$K$1048576) -> 0 | R174: 0
C175: T41503 | D175: 112.5 | E175: 13200 | F175: 228 | G175: -76.55877857 | H175: 2.501106623 | I175: 56.25 | J175: 56.25 | K175: 22.5 | L175: 22.5 | M175: =SUMIF(SOLICITUDES!$C$2:$C$1048576,BD!C175,SOLICITUDES!$I$2:$I$1048576) -> 0 | N175: 0 | O175: =SUMIF(SOLICITUDES!$C$2:$C$1048576,BD!C175,SOLICITUDES!$J$2:$J$1048576) -> 0 | P175: 0 | Q175: =SUMIF(SOLICITUDES!$C$2:$C$1048576,BD!C175,SOLICITUDES!$K$2:$K$1048576) -> 0 | R175: 0
C176: T3036 | D176: 25 | E176: 13200 | F176: 240 | G176: -76.57445908 | H176: 2.508710178 | I176: 12.5 | J176: 12.5 | K176: 5 | L176: 5 | M176: =SUMIF(SOLICITUDES!$C$2:$C$1048576,BD!C176,SOLICITUDES!$I$2:$I$1048576) -> 0 | N176: 0 | O176: =SUMIF(SOLICITUDES!$C$2:$C$1048576,BD!C176,SOLICITUDES!$J$2:$J$1048576) -> 0 | P176: 0 | Q176: =SUMIF(SOLICITUDES!$C$2:$C$1048576,BD!C176,SOLICITUDES!$K$2:$K$1048576) -> 0 | R176: 0
C177: T30281 | D177: 75 | E177: 13200 | F177: 241 | G177: -76.55895193 | H177: 2.501351963 | I177: 37.5 | J177: 37.5 | K177: 15 | L177: 15 | M177: =SUMIF(SOLICITUDES!$C$2:$C$1048576,BD!C177,SOLICITUDES!$I$2:$I$1048576) -> 0 | N177: 0 | O177: =SUMIF(SOLICITUDES!$C$2:$C$1048576,BD!C177,SOLICITUDES!$J$2:$J$1048576) -> 0 | P177: 0 | Q177: =SUMIF(SOLICITUDES!$C$2:$C$1048576,BD!C177,SOLICITUDES!$K$2:$K$1048576) -> 0 | R177: 0
C178: T2668 | D178: 10 | E178: 13200 | F178: 240 | G178: -76.55788201 | H178: 2.501212845 | I178: 5 | J178: 5 | K178: 2 | L178: 2 | M178: =SUMIF(SOLICITUDES!$C$2:$C$1048576,BD!C178,SOLICITUDES!$I$2:$I$1048576) -> 0 | N178: 0 | O178: =SUMIF(SOLICITUDES!$C$2:$C$1048576,BD!C178,SOLICITUDES!$J$2:$J$1048576) -> 0 | P178: 0 | Q178: =SUMIF(SOLICITUDES!$C$2:$C$1048576,BD!C178,SOLICITUDES!$K$2:$K$1048576) -> 0 | R178: 0
C179: T10438 | D179: 30 | E179: 13200 | F179: 208 | G179: -76.57783963 | H179: 2.509216961 | I179: 15 | J179: 15 | K179: 6 | L179: 6 | M179: =SUMIF(SOLICITUDES!$C$2:$C$1048576,BD!C179,SOLICITUDES!$I$2:$I$1048576) -> 0 | N179: 0 | O179: =SUMIF(SOLICITUDES!$C$2:$C$1048576,BD!C179,SOLICITUDES!$J$2:$J$1048576) -> 0 | P179: 0 | Q179: =SUMIF(SOLICITUDES!$C$2:$C$1048576,BD!C179,SOLICITUDES!$K$2:$K$1048576) -> 0 | R179: 0
C180: T15113 | D180: 10 | E180: 13200 | F180: 240 | G180: -76.5589102 | H180: 2.500942864 | I180: 5 | J180: 5 | K180: 2 | L180: 2 | M180: =SUMIF(SOLICITUDES!$C$2:$C$1048576,BD!C180,SOLICITUDES!$I$2:$I$1048576) -> 0 | N180: 0 | O180: =SUMIF(SOLICITUDES!$C$2:$C$1048576,BD!C180,SOLICITUDES!$J$2:$J$1048576) -> 0 | P180: 0 | Q180: =SUMIF(SOLICITUDES!$C$2:$C$1048576,BD!C180,SOLICITUDES!$K$2:$K$1048576) -> 0 | R180: 0
C181: T2226 | D181: 5 | E181: 13200 | F181: 240 | G181: -76.59738604 | H181: 2.535893675 | I181: 2.5 | J181: 2.5 | K181: 1 | L181: 1 | M181: =SUMIF(SOLICITUDES!$C$2:$C$1048576,BD!C181,SOLICITUDES!$I$2:$I$1048576) -> 0 | N181: 0 | O181: =SUMIF(SOLICITUDES!$C$2:$C$1048576,BD!C181,SOLICITUDES!$J$2:$J$1048576) -> 0 | P181: 0 | Q181: =SUMIF(SOLICITUDES!$C$2:$C$1048576,BD!C181,SOLICITUDES!$K$2:$K$1048576) -> 0 | R181: 0
C182: T3033 | D182: 5 | E182: 13200 | F182: 240 | G182: -76.56356049 | H182: 2.511436909 | I182: 2.5 | J182: 2.5 | K182: 1 | L182: 1 | M182: =SUMIF(SOLICITUDES!$C$2:$C$1048576,BD!C182,SOLICITUDES!$I$2:$I$1048576) -> 0 | N182: 0 | O182: =SUMIF(SOLICITUDES!$C$2:$C$1048576,BD!C182,SOLICITUDES!$J$2:$J$1048576) -> 0 | P182: 0 | Q182: =SUMIF(SOLICITUDES!$C$2:$C$1048576,BD!C182,SOLICITUDES!$K$2:$K$1048576) -> 0 | R182: 0
C183: T3012 | D183: 15 | E183: 13200 | F183: 240 | G183: -76.56445041 | H183: 2.511988901 | I183: 7.5 | J183: 7.5 | K183: 3 | L183: 3 | M183: =SUMIF(SOLICITUDES!$C$2:$C$1048576,BD!C183,SOLICITUDES!$I$2:$I$1048576) -> 0 | N183: 0 | O183: =SUMIF(SOLICITUDES!$C$2:$C$1048576,BD!C183,SOLICITUDES!$J$2:$J$1048576) -> 0 | P183: 0 | Q183: =SUMIF(SOLICITUDES!$C$2:$C$1048576,BD!C183,SOLICITUDES!$K$2:$K$1048576) -> 0 | R183: 0
C184: T3089 | D184: 15 | E184: 13200 | F184: 240 | G184: -76.56548435 | H184: 2.51217922 | I184: 7.5 | J184: 7.5 | K184: 3 | L184: 3 | M184: =SUMIF(SOLICITUDES!$C$2:$C$1048576,BD!C184,SOLICITUDES!$I$2:$I$1048576) -> 0 | N184: 0 | O184: =SUMIF(SOLICITUDES!$C$2:$C$1048576,BD!C184,SOLICITUDES!$J$2:$J$1048576) -> 0 | P184: 0 | Q184: =SUMIF(SOLICITUDES!$C$2:$C$1048576,BD!C184,SOLICITUDES!$K$2:$K$1048576) -> 0 | R184: 0
C185: T2621 | D185: 25 | E185: 13200 | F185: 240 | G185: -76.61008351 | H185: 2.532253922 | I185: 12.5 | J185: 12.5 | K185: 5 | L185: 5 | M185: =SUMIF(SOLICITUDES!$C$2:$C$1048576,BD!C185,SOLICITUDES!$I$2:$I$1048576) -> 0 | N185: 0 | O185: =SUMIF(SOLICITUDES!$C$2:$C$1048576,BD!C185,SOLICITUDES!$J$2:$J$1048576) -> 0 | P185: 0 | Q185: =SUMIF(SOLICITUDES!$C$2:$C$1048576,BD!C185,SOLICITUDES!$K$2:$K$1048576) -> 0 | R185: 0
C186: T2228 | D186: 15 | E186: 13200 | F186: 240 | G186: -76.59250836 | H186: 2.5233127 | I186: 7.5 | J186: 7.5 | K186: 3 | L186: 3 | M186: =SUMIF(SOLICITUDES!$C$2:$C$1048576,BD!C186,SOLICITUDES!$I$2:$I$1048576) -> 0 | N186: 0 | O186: =SUMIF(SOLICITUDES!$C$2:$C$1048576,BD!C186,SOLICITUDES!$J$2:$J$1048576) -> 0 | P186: 0 | Q186: =SUMIF(SOLICITUDES!$C$2:$C$1048576,BD!C186,SOLICITUDES!$K$2:$K$1048576) -> 0 | R186: 0
C187: T42349 | D187: 112.5 | E187: 13200 | F187: 226 | G187: -76.55974662 | H187: 2.500448191 | I187: 56.25 | J187: 56.25 | K187: 22.5 | L187: 22.5 | M187: =SUMIF(SOLICITUDES!$C$2:$C$1048576,BD!C187,SOLICITUDES!$I$2:$I$1048576) -> 0 | N187: 0 | O187: =SUMIF(SOLICITUDES!$C$2:$C$1048576,BD!C187,SOLICITUDES!$J$2:$J$1048576) -> 0 | P187: 0 | Q187: =SUMIF(SOLICITUDES!$C$2:$C$1048576,BD!C187,SOLICITUDES!$K$2:$K$1048576) -> 0 | R187: 0
C188: T2996 | D188: 25 | E188: 13200 | F188: 240 | G188: -76.56765088 | H188: 2.513192908 | I188: 12.5 | J188: 12.5 | K188: 5 | L188: 5 | M188: =SUMIF(SOLICITUDES!$C$2:$C$1048576,BD!C188,SOLICITUDES!$I$2:$I$1048576) -> 0 | N188: 0 | O188: =SUMIF(SOLICITUDES!$C$2:$C$1048576,BD!C188,SOLICITUDES!$J$2:$J$1048576) -> 0 | P188: 0 | Q188: =SUMIF(SOLICITUDES!$C$2:$C$1048576,BD!C188,SOLICITUDES!$K$2:$K$1048576) -> 0 | R188: 0
C189: T3059 | D189: 37.5 | E189: 13200 | F189: 240 | G189: -76.5649353 | H189: 2.513653037 | I189: 18.75 | J189: 18.75 | K189: 7.5 | L189: 7.5 | M189: =SUMIF(SOLICITUDES!$C$2:$C$1048576,BD!C189,SOLICITUDES!$I$2:$I$1048576) -> 0 | N189: 0 | O189: =SUMIF(SOLICITUDES!$C$2:$C$1048576,BD!C189,SOLICITUDES!$J$2:$J$1048576) -> 0 | P189: 0 | Q189: =SUMIF(SOLICITUDES!$C$2:$C$1048576,BD!C189,SOLICITUDES!$K$2:$K$1048576) -> 0 | R189: 0
C190: T27143 | D190: 5 | E190: 13200 | F190: 240 | G190: -76.59145184 | H190: 2.530720468 | I190: 2.5 | J190: 2.5 | K190: 1 | L190: 1 | M190: =SUMIF(SOLICITUDES!$C$2:$C$1048576,BD!C190,SOLICITUDES!$I$2:$I$1048576) -> 0 | N190: 0 | O190: =SUMIF(SOLICITUDES!$C$2:$C$1048576,BD!C190,SOLICITUDES!$J$2:$J$1048576) -> 0 | P190: 0 | Q190: =SUMIF(SOLICITUDES!$C$2:$C$1048576,BD!C190,SOLICITUDES!$K$2:$K$1048576) -> 0 | R190: 0
C191: T30699 | D191: 150 | E191: 13200 | F191: 452 | G191: -76.56076618 | H191: 2.506099106 | I191: 75 | J191: 75 | K191: 30 | L191: 30 | M191: =SUMIF(SOLICITUDES!$C$2:$C$1048576,BD!C191,SOLICITUDES!$I$2:$I$1048576) -> 0 | N191: 0 | O191: =SUMIF(SOLICITUDES!$C$2:$C$1048576,BD!C191,SOLICITUDES!$J$2:$J$1048576) -> 0 | P191: 0 | Q191: =SUMIF(SOLICITUDES!$C$2:$C$1048576,BD!C191,SOLICITUDES!$K$2:$K$1048576) -> 0 | R191: 0
C192: T15110 | D192: 225 | E192: 13200 | F192: 208 | G192: -76.56095418 | H192: 2.508442592 | I192: 112.5 | J192: 112.5 | K192: 45 | L192: 45 | M192: =SUMIF(SOLICITUDES!$C$2:$C$1048576,BD!C192,SOLICITUDES!$I$2:$I$1048576) -> 0 | N192: 0 | O192: =SUMIF(SOLICITUDES!$C$2:$C$1048576,BD!C192,SOLICITUDES!$J$2:$J$1048576) -> 0 | P192: 0 | Q192: =SUMIF(SOLICITUDES!$C$2:$C$1048576,BD!C192,SOLICITUDES!$K$2:$K$1048576) -> 0 | R192: 0
C193: T31007 | D193: 30 | E193: 13200 | F193: 240 | G193: -76.56774011 | H193: 2.514956357 | I193: 15 | J193: 0 | K193: 6 | L193: 6 | M193: =SUMIF(SOLICITUDES!$C$2:$C$1048576,BD!C193,SOLICITUDES!$I$2:$I$1048576) -> 15 | N193: 0.5 | O193: =SUMIF(SOLICITUDES!$C$2:$C$1048576,BD!C193,SOLICITUDES!$J$2:$J$1048576) -> 0 | P193: 0 | Q193: =SUMIF(SOLICITUDES!$C$2:$C$1048576,BD!C193,SOLICITUDES!$K$2:$K$1048576) -> 15 | R193: 1.25
C194: T3031 | D194: 15 | E194: 13200 | F194: 220 | G194: -76.57326056 | H194: 2.515627721 | I194: 7.5 | J194: 7.5 | K194: 3 | L194: 3 | M194: =SUMIF(SOLICITUDES!$C$2:$C$1048576,BD!C194,SOLICITUDES!$I$2:$I$1048576) -> 0 | N194: 0 | O194: =SUMIF(SOLICITUDES!$C$2:$C$1048576,BD!C194,SOLICITUDES!$J$2:$J$1048576) -> 0 | P194: 0 | Q194: =SUMIF(SOLICITUDES!$C$2:$C$1048576,BD!C194,SOLICITUDES!$K$2:$K$1048576) -> 0 | R194: 0
C195: T30128 | D195: 10 | E195: 13200 | F195: 240 | G195: -76.57026089 | H195: 2.514993563 | I195: 5 | J195: =D195*0.5-M195 -> 5 | K195: 2 | L195: 2 | M195: =SUMIF(SOLICITUDES!$C$2:$C$1048576,BD!C195,SOLICITUDES!$I$2:$I$1048576) -> 0 | N195: =M195/D195 -> 0 | O195: =SUMIF(SOLICITUDES!$C$2:$C$1048576,BD!C195,SOLICITUDES!$J$2:$J$1048576) -> 0 | P195: 0 | Q195: =SUMIF(SOLICITUDES!$C$2:$C$1048576,BD!C195,SOLICITUDES!$K$2:$K$1048576) -> 0 | R195: 0
C196: T3057 | D196: 25 | E196: 13200 | F196: 240 | G196: -76.57158727 | H196: 2.514755519 | I196: =D196*0.5 -> 12.5 | J196: 12.5 | K196: =0.2*D196 -> 5 | L196: =0.2*D196 -> 5 | M196: =SUMIF(SOLICITUDES!$C$2:$C$1048576,BD!C196,SOLICITUDES!$I$2:$I$1048576) -> 0 | N196: 0 | O196: =SUMIF(SOLICITUDES!$C$2:$C$1048576,BD!C196,SOLICITUDES!$J$2:$J$1048576) -> 0 | P196: =O196/(2*K196) -> 0 | Q196: =SUMIF(SOLICITUDES!$C$2:$C$1048576,BD!C196,SOLICITUDES!$K$2:$K$1048576) -> 0 | R196: =Q196/(2*L196) -> 0
C197: T2626 | D197: 5 | E197: 13200 | F197: 240 | G197: -76.61722258 | H197: 2.533016217 | I197: 2.5 | J197: 2.5 | K197: 1 | L197: 1 | M197: =SUMIF(SOLICITUDES!$C$2:$C$1048576,BD!C197,SOLICITUDES!$I$2:$I$1048576) -> 0 | N197: 0 | O197: =SUMIF(SOLICITUDES!$C$2:$C$1048576,BD!C197,SOLICITUDES!$J$2:$J$1048576) -> 0 | P197: 0 | Q197: =SUMIF(SOLICITUDES!$C$2:$C$1048576,BD!C197,SOLICITUDES!$K$2:$K$1048576) -> 0 | R197: 0
C198: T2615 | D198: 25 | E198: 13200 | F198: 240 | G198: -76.61529761 | H198: 2.535059214 | I198: 12.5 | J198: 12.5 | K198: 5 | L198: 5 | M198: =SUMIF(SOLICITUDES!$C$2:$C$1048576,BD!C198,SOLICITUDES!$I$2:$I$1048576) -> 0 | N198: 0 | O198: =SUMIF(SOLICITUDES!$C$2:$C$1048576,BD!C198,SOLICITUDES!$J$2:$J$1048576) -> 0 | P198: 0 | Q198: =SUMIF(SOLICITUDES!$C$2:$C$1048576,BD!C198,SOLICITUDES!$K$2:$K$1048576) -> 0 | R198: 0
C199: T2616 | D199: 25 | E199: 13200 | F199: 240 | G199: -76.61333523 | H199: 2.541162717 | I199: 12.5 | J199: 12.5 | K199: 5 | L199: 5 | M199: =SUMIF(SOLICITUDES!$C$2:$C$1048576,BD!C199,SOLICITUDES!$I$2:$I$1048576) -> 0 | N199: 0 | O199: =SUMIF(SOLICITUDES!$C$2:$C$1048576,BD!C199,SOLICITUDES!$J$2:$J$1048576) -> 0 | P199: 0 | Q199: =SUMIF(SOLICITUDES!$C$2:$C$1048576,BD!C199,SOLICITUDES!$K$2:$K$1048576) -> 0 | R199: 0
C200: T2620 | D200: 30 | E200: 13200 | F200: 208 | G200: -76.61857998 | H200: 2.533875817 | I200: 15 | J200: 15 | K200: 6 | L200: 6 | M200: =SUMIF(SOLICITUDES!$C$2:$C$1048576,BD!C200,SOLICITUDES!$I$2:$I$1048576) -> 0 | N200: 0 | O200: =SUMIF(SOLICITUDES!$C$2:$C$1048576,BD!C200,SOLICITUDES!$J$2:$J$1048576) -> 0 | P200: 0 | Q200: =SUMIF(SOLICITUDES!$C$2:$C$1048576,BD!C200,SOLICITUDES!$K$2:$K$1048576) -> 0 | R200: 0
... 4300 more rows

Sheet CONSULTA
A1: MATRICULA TRASFORMADOR | B1: T28305
B4: RESULTADO DE LA CONSULTA DE LA DISPONIBILIDAD DE LA RED EN EL PUNTO DE CONEXIÓN
B6: FECHA DE CONSULTA | D6: =TODAY() -> 2023-08-26
B7: FECHA DE ACTUALIZACIÓN | D7: =TODAY()-10 -> 2023-08-16
B9: DATOS DEL PUNTO DE CONEXIÓN
B10: CÓDIGO TRAFO | D10: =VLOOKUP($B$1,BD!C3:R22720,1,FALSE) -> T28305
B11: POTENCIA NOMINAL [kVA] | D11: =VLOOKUP($B$1,BD!C3:R22720,2,FALSE) -> 15
B12: TENSIÓN PRIMARIA [V] | D12: =VLOOKUP($B$1,BD!C3:R22720,3,FALSE) -> 13200
B13: TENSIÓN SECUNDARIA [V] | D13: =VLOOKUP($B$1,BD!C3:R22720,4,FALSE) -> 240
B14: LONGITUD | D14: =VLOOKUP($B$1,BD!C3:R22720,5,FALSE) -> -76.54152139
B15: LATITUD | D15: =VLOOKUP($B$1,BD!C3:R22720,6,FALSE) -> 2.590842558
B16: CAPACIDAD MAXIMA A CONECTAR | D16: =VLOOKUP($B$1,BD!C3:R22720,7,FALSE) -> 7.5
B17: VALOR DE CAPACIDAD DISPONIBLE (CD) [KW] | D17: =VLOOKUP($B$1,BD!C3:R22720,8,FALSE) -> 3.5
B18: (50%PAHMD24H) [kWh] | D18: =VLOOKUP($B$1,BD!C3:R22720,9,FALSE) -> 3
B19: (50%PAHMD12H) [kWh] | D19: =VLOOKUP($B$1,BD!C3:R22720,10,FALSE) -> 3
B21: ESTÁNDARES TÉCNICOS DE DISPONIBILIDAD DEL SISTEMA EN EL NIVEL DE TENSIÓN 1
G22: VALOR | I22: PORCENTAJE
B23: VALOR DE LA SUMATORIA DE LA POTENCIA MÁXIMA DECLARADA DE LOS GD Y AGPE INSTALADOS EN EL MISMO CIRCUITO O TRANSFORMADOR, DE AUTOGENERACIÓN (SPMAXD) [kW] | G23: =VLOOKUP($B$1,BD!C3:R22720,11,FALSE) -> 4
I24: =VLOOKUP($B$1,BD!C3:R22720,12,FALSE) -> 0.2666666667
B26: LA CANTIDAD TOTAL DE ENERGÍA EN UNA HORA QUE PUEDEN ENTREGAR TODOS LOS GD Y AGPE A LA RED, CONECTADOS AL MISMO CIRCUITO O TRANSFORMADOR DEL NIVEL DE TENSIÓN 1, CUYO SISTEMA DE PRODUCCIÓN DE ENERGÍA SEA DISTINTO AL COMPUESTO POR UN SISTEMA FOTOVOLTAICO SIN CAPACIDAD DE ALMACENAMIENTO (E24H) [kWh]
G27: =VLOOKUP($B$1,BD!C3:R22720,13,FALSE) -> 0 | I27: =VLOOKUP($B$1,BD!C3:R22720,14,FALSE) -> 0
B29: LA CANTIDAD TOTAL DE ENERGÍA EN UNA HORA QUE PUEDEN ENTREGAR TODOS LOS GD Y AGPE A LA RED, CONECTADOS AL MISMO CIRCUITO O TRANSFORMADOR DEL NIVEL DE TENSIÓN 1, CUYO SISTEMA DE PRODUCCIÓN DE ENERGÍA SEA EL COMPUESTO POR UN SISTEMA FOTOVOLTAICO SIN CAPACIDAD DE ALMACENAMIENTO (E12H) [kWh]
G30: =VLOOKUP($B$1,BD!C3:R22720,15,FALSE) -> 4 | I30: =VLOOKUP($B$1,BD!C3:R22720,16,FALSE) -> 0.6666666667
G51: =NOW() -> 2023-08-26T10:04:43.630

Sheet SOLICITUDES (hidden)
A1: NUMERO DE SOLICITUD | B1: ESTADO | C1: CODIGO DE TRASFORMADOR | D1: TIPO DE GENERACIÓN | E1: TIPO DE TECNOLOGÍA UTILIZADA | F1: CAPACIDAD NOMINAL | G1: POTENCIA MÁXIMA DECLARADA [MW] | H1: POTENCIA MÁXIMA DECLARADA [kW] | I1: POTENCIA MÁXIMA DECLARADA (REPORTE) | J1: E24H | K1: E12H
A2: 1 | B2: EN OPERACIÓN | C2: T13617 | E2: SOLAR | F2: 2.97 | G2: 0 | H2: =G2 -> 0 | I2: =IFERROR(_xlfn.IFS(B2="SOLICITUD APROBADA",H2,B2="CONEXIÓN APROBADA",H2,B2="EN OPERACIÓN",H2,B2="EN SUBSANACIÓN",H2)," 0 ") -> 0 | J2: =IF(E2<>"SOLAR",H2,0) -> 0 | K2: =IF(E2="SOLAR",I2,0) -> 0
A3: 2 | B3: EN OPERACIÓN | C3: T9473 | E3: SOLAR | F3: 2.97 | G3: 0 | H3: =G3 -> 0 | I3: =IFERROR(_xlfn.IFS(B3="SOLICITUD APROBADA",H3,B3="CONEXIÓN APROBADA",H3,B3="EN OPERACIÓN",H3,B3="EN SUBSANACIÓN",H3)," 0 ") -> 0 | J3: =IF(E3<>"SOLAR",H3,0) -> 0 | K3: =IF(E3="SOLAR",I3,0) -> 0
A4: 3 | B4: EN OPERACIÓN | C4: T22340 | E4: SOLAR | F4: 2.97 | G4: 0 | H4: 0 | I4: =IFERROR(_xlfn.IFS(B4="SOLICITUD APROBADA",H4,B4="CONEXIÓN APROBADA",H4,B4="EN OPERACIÓN",H4,B4="EN SUBSANACIÓN",H4)," 0 ") -> 0 | J4: 0 | K4: 0
A5: 4 | B5: EN OPERACIÓN | C5: T18201 | E5: SOLAR | F5: 8.16 | G5: 0 | H5: 0 | I5: =IFERROR(_xlfn.IFS(B5="SOLICITUD APROBADA",H5,B5="CONEXIÓN APROBADA",H5,B5="EN OPERACIÓN",H5,B5="EN SUBSANACIÓN",H5)," 0 ") -> 0 | J5: 0 | K5: 0
A6: 5 | B6: EN OPERACIÓN | C6: T15378 | E6: SOLAR | F6: 480 | G6: 317.52 | H6: 317.52 | I6: =IFERROR(_xlfn.IFS(B6="SOLICITUD APROBADA",H6,B6="CONEXIÓN APROBADA",H6,B6="EN OPERACIÓN",H6,B6="EN SUBSANACIÓN",H6)," 0 ") -> 317.52 | J6: 0 | K6: 317.52
A7: 6 | B7: CONEXIÓN RECHAZADA | C7: T26453 | E7: SOLAR | F7: 25.85 | G7: 25.85 | H7: 25.85 | I7: =IFERROR(_xlfn.IFS(B7="SOLICITUD APROBADA",H7,B7="CONEXIÓN APROBADA",H7,B7="EN OPERACIÓN",H7,B7="EN SUBSANACIÓN",H7)," 0 ") -> 0 | J7: 0 | K7: 0
A8: 7 | B8: CONEXIÓN RECHAZADA | C8: T26452 | E8: SOLAR | F8: 25.85 | G8: 25.85 | H8: 25.85 | I8: =IFERROR(_xlfn.IFS(B8="SOLICITUD APROBADA",H8,B8="CONEXIÓN APROBADA",H8,B8="EN OPERACIÓN",H8,B8="EN SUBSANACIÓN",H8)," 0 ") -> 0 | J8: 0 | K8: 0
A9: 8 | B9: CONEXIÓN RECHAZADA | C9: T8788 | E9: SOLAR | F9: 43.2 | G9: 43.2 | H9: 43.2 | I9: =IFERROR(_xlfn.IFS(B9="SOLICITUD APROBADA",H9,B9="CONEXIÓN APROBADA",H9,B9="EN OPERACIÓN",H9,B9="EN SUBSANACIÓN",H9)," 0 ") -> 0 | J9: 0 | K9: 0
A10: 9 | B10: EN OPERACIÓN | C10: T12205 | E10: SOLAR | F10: 21.6 | G10: 0 | H10: 0 | I10: =IFERROR(_xlfn.IFS(B10="SOLICITUD APROBADA",H10,B10="CONEXIÓN APROBADA",H10,B10="EN OPERACIÓN",H10,B10="EN SUBSANACIÓN",H10)," 0 ") -> 0 | J10: 0 | K10: 0
A11: 10 | B11: CONEXIÓN RECHAZADA | C11: T2164 | E11: SOLAR | F11: 6 | G11: 0 | H11: 0 | I11: =IFERROR(_xlfn.IFS(B11="SOLICITUD APROBADA",H11,B11="CONEXIÓN APROBADA",H11,B11="EN OPERACIÓN",H11,B11="EN SUBSANACIÓN",H11)," 0 ") -> 0 | J11: 0 | K11: 0
A12: 11 | B12: CONEXIÓN RECHAZADA | C12: T8160 | E12: SOLAR | F12: 600 | G12: 0 | H12: 0 | I12: =IFERROR(_xlfn.IFS(B12="SOLICITUD APROBADA",H12,B12="CONEXIÓN APROBADA",H12,B12="EN OPERACIÓN",H12,B12="EN SUBSANACIÓN",H12)," 0 ") -> 0 | J12: 0 | K12: 0
A13: 12 | B13: EN OPERACIÓN | C13: T7582 | E13: SOLAR | F13: 120 | G13: 120 | H13: 120 | I13: =IFERROR(_xlfn.IFS(B13="SOLICITUD APROBADA",H13,B13="CONEXIÓN APROBADA",H13,B13="EN OPERACIÓN",H13,B13="EN SUBSANACIÓN",H13)," 0 ") -> 120 | J13: 0 | K13: 120
A14: 13 | B14: EN OPERACIÓN | C14: T40268 | E14: SOLAR | F14: 120 | G14: 120 | H14: 120 | I14: =IFERROR(_xlfn.IFS(B14="SOLICITUD APROBADA",H14,B14="CONEXIÓN APROBADA",H14,B14="EN OPERACIÓN",H14,B14="EN SUBSANACIÓN",H14)," 0 ") -> 120 | J14: 0 | K14: 120
A15: 14 | B15: EN OPERACIÓN | C15: T41518 | E15: SOLAR | F15: 2880 | G15: 0 | H15: 0 | I15: =IFERROR(_xlfn.IFS(B15="SOLICITUD APROBADA",H15,B15="CONEXIÓN APROBADA",H15,B15="EN OPERACIÓN",H15,B15="EN SUBSANACIÓN",H15)," 0 ") -> 0 | J15: 0 | K15: 0
A16: 15 | B16: EN OPERACIÓN | C16: T7143 | E16: SOLAR | F16: 6 | G16: 6 | H16: 6 | I16: =IFERROR(_xlfn.IFS(B16="SOLICITUD APROBADA",H16,B16="CONEXIÓN APROBADA",H16,B16="EN OPERACIÓN",H16,B16="EN SUBSANACIÓN",H16)," 0 ") -> 6 | J16: 0 | K16: 6
A17: 16 | B17: CONEXIÓN APROBADA | C17: T7421 | E17: SOLAR | F17: 5 | G17: 5 | H17: 5 | I17: =IFERROR(_xlfn.IFS(B17="SOLICITUD APROBADA",H17,B17="CONEXIÓN APROBADA",H17,B17="EN OPERACIÓN",H17,B17="EN SUBSANACIÓN",H17)," 0 ") -> 5 | J17: 0 | K17: 5
A18: 17 | B18: CONEXIÓN APROBADA | C18: T12007 | E18: SOLAR | F18: 15 | G18: 15 | H18: 15 | I18: =IFERROR(_xlfn.IFS(B18="SOLICITUD APROBADA",H18,B18="CONEXIÓN APROBADA",H18,B18="EN OPERACIÓN",H18,B18="EN SUBSANACIÓN",H18)," 0 ") -> 15 | J18: 0 | K18: 15
A19: 18 | B19: EN OPERACIÓN | C19: T10626 | E19: SOLAR | F19: 30 | G19: 30 | H19: 30 | I19: =IFERROR(_xlfn.IFS(B19="SOLICITUD APROBADA",H19,B19="CONEXIÓN APROBADA",H19,B19="EN OPERACIÓN",H19,B19="EN SUBSANACIÓN",H19)," 0 ") -> 30 | J19: 0 | K19: 30
A20: 19 | B20: EN OPERACIÓN | C20: T8169 | E20: SOLAR | F20: 10 | G20: 10 | H20: 10 | I20: =IFERROR(_xlfn.IFS(B20="SOLICITUD APROBADA",H20,B20="CONEXIÓN APROBADA",H20,B20="EN OPERACIÓN",H20,B20="EN SUBSANACIÓN",H20)," 0 ") -> 10 | J20: 0 | K20: 10
A21: 20 | B21: CONEXIÓN APROBADA | C21: T13623 | E21: SOLAR | F21: 10 | G21: 10 | H21: 10 | I21: =IFERROR(_xlfn.IFS(B21="SOLICITUD APROBADA",H21,B21="CONEXIÓN APROBADA",H21,B21="EN OPERACIÓN",H21,B21="EN SUBSANACIÓN",H21)," 0 ") -> 10 | J21: 0 | K21: 10
A22: 21 | B22: EN OPERACIÓN | C22: T5152 | E22: SOLAR | F22: 3.8 | G22: 3.8 | H22: 3.8 | I22: =IFERROR(_xlfn.IFS(B22="SOLICITUD APROBADA",H22,B22="CONEXIÓN APROBADA",H22,B22="EN OPERACIÓN",H22,B22="EN SUBSANACIÓN",H22)," 0 ") -> 3.8 | J22: 0 | K22: 3.8
A23: 22 | B23: EN OPERACIÓN | C23: T12632 | E23: SOLAR | F23: 3.8 | G23: 3.8 | H23: 3.8 | I23: =IFERROR(_xlfn.IFS(B23="SOLICITUD APROBADA",H23,B23="CONEXIÓN APROBADA",H23,B23="EN OPERACIÓN",H23,B23="EN SUBSANACIÓN",H23)," 0 ") -> 3.8 | J23: 0 | K23: 3.8
A24: 23 | B24: EN OPERACIÓN | C24: T10463 | E24: SOLAR | F24: 10 | G24: 10 | H24: 10 | I24: =IFERROR(_xlfn.IFS(B24="SOLICITUD APROBADA",H24,B24="CONEXIÓN APROBADA",H24,B24="EN OPERACIÓN",H24,B24="EN SUBSANACIÓN",H24)," 0 ") -> 10 | J24: 0 | K24: 10
A25: 24 | B25: EN OPERACIÓN | C25: T12300 | E25: SOLAR | F25: 10 | G25: 10 | H25: 10 | I25: =IFERROR(_xlfn.IFS(B25="SOLICITUD APROBADA",H25,B25="CONEXIÓN APROBADA",H25,B25="EN OPERACIÓN",H25,B25="EN SUBSANACIÓN",H25)," 0 ") -> 10 | J25: 0 | K25: 10
A26: 25 | B26: EN OPERACIÓN | C26: T8076 | E26: SOLAR | F26: 3.8 | G26: 3.8 | H26: 3.8 | I26: =IFERROR(_xlfn.IFS(B26="SOLICITUD APROBADA",H26,B26="CONEXIÓN APROBADA",H26,B26="EN OPERACIÓN",H26,B26="EN SUBSANACIÓN",H26)," 0 ") -> 3.8 | J26: 0 | K26: 3.8
A27: 26 | B27: CONEXIÓN APROBADA | C27: T5608 | E27: SOLAR | F27: 3.8 | G27: 3.8 | H27: 3.8 | I27: =IFERROR(_xlfn.IFS(B27="SOLICITUD APROBADA",H27,B27="CONEXIÓN APROBADA",H27,B27="EN OPERACIÓN",H27,B27="EN SUBSANACIÓN",H27)," 0 ") -> 3.8 | J27: 0 | K27: 3.8
A28: 27 | B28: EN OPERACIÓN | C28: T9924 | E28: SOLAR | F28: 3.8 | G28: 3.8 | H28: 3.8 | I28: =IFERROR(_xlfn.IFS(B28="SOLICITUD APROBADA",H28,B28="CONEXIÓN APROBADA",H28,B28="EN OPERACIÓN",H28,B28="EN SUBSANACIÓN",H28)," 0 ") -> 3.8 | J28: 0 | K28: 3.8
A29: 28 | B29: EN OPERACIÓN | C29: T17168 | E29: SOLAR | F29: 5 | G29: 5 | H29: 5 | I29: =IFERROR(_xlfn.IFS(B29="SOLICITUD APROBADA",H29,B29="CONEXIÓN APROBADA",H29,B29="EN OPERACIÓN",H29,B29="EN SUBSANACIÓN",H29)," 0 ") -> 5 | J29: 0 | K29: 5
A30: 29 | B30: EN OPERACIÓN | C30: T7753 | E30: SOLAR | F30: 10 | G30: 10 | H30: 10 | I30: =IFERROR(_xlfn.IFS(B30="SOLICITUD APROBADA",H30,B30="CONEXIÓN APROBADA",H30,B30="EN OPERACIÓN",H30,B30="EN SUBSANACIÓN",H30)," 0 ") -> 10 | J30: 0 | K30: 10
A31: 30 | B31: EN OPERACIÓN | C31: T15378 | E31: SOLAR | F31: 3.8 | G31: 3.8 | H31: 3.8 | I31: =IFERROR(_xlfn.IFS(B31="SOLICITUD APROBADA",H31,B31="CONEXIÓN APROBADA",H31,B31="EN OPERACIÓN",H31,B31="EN SUBSANACIÓN",H31)," 0 ") -> 3.8 | J31: 0 | K31: 3.8
A32: 31 | B32: EN OPERACIÓN | C32: T15377 | E32: SOLAR | F32: 312 | G32: 145 | H32: 145 | I32: =IFERROR(_xlfn.IFS(B32="SOLICITUD APROBADA",H32,B32="CONEXIÓN APROBADA",H32,B32="EN OPERACIÓN",H32,B32="EN SUBSANACIÓN",H32)," 0 ") -> 145 | J32: 0 | K32: 145
A33: 32 | B33: CONEXIÓN APROBADA | C33: T1466 | E33: SOLAR | F33: 3.2 | G33: 1.2 | H33: 1.2 | I33: =IFERROR(_xlfn.IFS(B33="SOLICITUD APROBADA",H33,B33="CONEXIÓN APROBADA",H33,B33="EN OPERACIÓN",H33,B33="EN SUBSANACIÓN",H33)," 0 ") -> 1.2 | J33: 0 | K33: 1.2
A34: 33 | B34: CONEXIÓN APROBADA | C34: T31007 | E34: SOLAR | F34: 20 | G34: 15 | H34: 15 | I34: =IFERROR(_xlfn.IFS(B34="SOLICITUD APROBADA",H34,B34="CONEXIÓN APROBADA",H34,B34="EN OPERACIÓN",H34,B34="EN SUBSANACIÓN",H34)," 0 ") -> 15 | J34: 0 | K34: 15
A35: 34 | B35: EN OPERACIÓN | C35: 2090406 | E35: Otro | F35: 3750 | G35: 3000 | H35: 3000 | I35: =IFERROR(_xlfn.IFS(B35="SOLICITUD APROBADA",H35,B35="CONEXIÓN APROBADA",H35,B35="EN OPERACIÓN",H35,B35="EN SUBSANACIÓN",H35)," 0 ") -> 3000 | J35: 3000 | K35: 0
A36: 35 | B36: EN OPERACIÓN | C36: 57170813 | E36: SOLAR | F36: 950 | G36: 875 | H36: 875 | I36: =IFERROR(_xlfn.IFS(B36="SOLICITUD APROBADA",H36,B36="CONEXIÓN APROBADA",H36,B36="EN OPERACIÓN",H36,B36="EN SUBSANACIÓN",H36)," 0 ") -> 875 | J36: 0 | K36: 875
A37: 36 | B37: EN OPERACIÓN | C37: 93206894 | E37: SOLAR | F37: 1980 | G37: 1670 | H37: 1670 | I37: =IFERROR(_xlfn.IFS(B37="SOLICITUD APROBADA",H37,B37="CONEXIÓN APROBADA",H37,B37="EN OPERACIÓN",H37,B37="EN SUBSANACIÓN",H37)," 0 ") -> 1670 | J37: 0 | K37: 1670
A38: 37 | B38: EN OPERACIÓN | C38: 2075652 | E38: SOLAR | F38: 1570 | G38: 1400 | H38: 1400 | I38: =IFERROR(_xlfn.IFS(B38="SOLICITUD APROBADA",H38,B38="CONEXIÓN APROBADA",H38,B38="EN OPERACIÓN",H38,B38="EN SUBSANACIÓN",H38)," 0 ") -> 1400 | J38: 0 | K38: 1400
A39: 38 | B39: EN OPERACIÓN | C39: T1822 | E39: SOLAR | F39: 4.5 | G39: 4.5 | H39: 4.5 | I39: =IFERROR(_xlfn.IFS(B39="SOLICITUD APROBADA",H39,B39="CONEXIÓN APROBADA",H39,B39="EN OPERACIÓN",H39,B39="EN SUBSANACIÓN",H39)," 0 ") -> 4.5 | J39: 0 | K39: 4.5
A40: 39 | B40: EN SUBSANACIÓN | C40: T28305 | E40: SOLAR | F40: 4 | G40: 4 | H40: 4 | I40: =IFERROR(_xlfn.IFS(B40="SOLICITUD APROBADA",H40,B40="CONEXIÓN APROBADA",H40,B40="EN OPERACIÓN",H40,B40="EN SUBSANACIÓN",H40)," 0 ") -> 4 | J40: 0 | K40: 4
A41: 40 | B41: CONEXIÓN APROBADA | C41: T1738 | E41: SOLAR | F41: 3 | G41: 2 | H41: 2 | I41: =IFERROR(_xlfn.IFS(B41="SOLICITUD APROBADA",H41,B41="CONEXIÓN APROBADA",H41,B41="EN OPERACIÓN",H41,B41="EN SUBSANACIÓN",H41)," 0 ") -> 2 | J41: 0 | K41: 2
A42: 41 | B42: CONEXIÓN APROBADA | C42: 8981298 | E42: SOLAR | F42: 60 | G42: 60 | H42: 60 | I42: =IFERROR(_xlfn.IFS(B42="SOLICITUD APROBADA",H42,B42="CONEXIÓN APROBADA",H42,B42="EN OPERACIÓN",H42,B42="EN SUBSANACIÓN",H42)," 0 ") -> 60 | J42: 0 | K42: 60
A43: 42 | B43: CONEXIÓN APROBADA | C43: T2275 | E43: SOLAR | F43: 1.5 | G43: 0.9 | H43: 0.9 | I43: =IFERROR(_xlfn.IFS(B43="SOLICITUD APROBADA",H43,B43="CONEXIÓN APROBADA",H43,B43="EN OPERACIÓN",H43,B43="EN SUBSANACIÓN",H43)," 0 ") -> 0.9 | J43: 0 | K43: 0.9
A44: 43 | B44: EN OPERACIÓN | C44: T2833 | E44: SOLAR | F44: 11.4 | G44: 10.35 | H44: 10.35 | I44: =IFERROR(_xlfn.IFS(B44="SOLICITUD APROBADA",H44,B44="CONEXIÓN APROBADA",H44,B44="EN OPERACIÓN",H44,B44="EN SUBSANACIÓN",H44)," 0 ") -> 10.35 | J44: 0 | K44: 10.35
A45: 44 | B45: EN OPERACIÓN | C45: T1826 | E45: SOLAR | F45: 3.3 | G45: 3.3 | H45: 3.3 | I45: =IFERROR(_xlfn.IFS(B45="SOLICITUD APROBADA",H45,B45="CONEXIÓN APROBADA",H45,B45="EN OPERACIÓN",H45,B45="EN SUBSANACIÓN",H45)," 0 ") -> 3.3 | J45: 0 | K45: 3.3
A46: 45 | B46: EN SUBSANACIÓN | C46: 898156703 | E46: SOLAR | F46: 125 | G46: 100 | H46: 100 | I46: =IFERROR(_xlfn.IFS(B46="SOLICITUD APROBADA",H46,B46="CONEXIÓN APROBADA",H46,B46="EN OPERACIÓN",H46,B46="EN SUBSANACIÓN",H46)," 0 ") -> 100 | J46: 0 | K46: 100
A47: 46 | B47: CONEXIÓN APROBADA | C47: T2849 | E47: SOLAR | F47: 13.5 | G47: 0 | H47: 0 | I47: =IFERROR(_xlfn.IFS(B47="SOLICITUD APROBADA",H47,B47="CONEXIÓN APROBADA",H47,B47="EN OPERACIÓN",H47,B47="EN SUBSANACIÓN",H47)," 0 ") -> 0 | J47: 0 | K47: 0
A48: 47 | B48: CONEXIÓN APROBADA | C48: T2849 | E48: SOLAR | F48: 10.7 | G48: 0 | H48: 0 | I48: =IFERROR(_xlfn.IFS(B48="SOLICITUD APROBADA",H48,B48="CONEXIÓN APROBADA",H48,B48="EN OPERACIÓN",H48,B48="EN SUBSANACIÓN",H48)," 0 ") -> 0 | J48: 0 | K48: 0
A49: 48 | B49: CONEXIÓN APROBADA | C49: T2808 | E49: SOLAR | F49: 10.7 | G49: 0 | H49: 0 | I49: =IFERROR(_xlfn.IFS(B49="SOLICITUD APROBADA",H49,B49="CONEXIÓN APROBADA",H49,B49="EN OPERACIÓN",H49,B49="EN SUBSANACIÓN",H49)," 0 ") -> 0 | J49: 0 | K49: 0
A50: 49 | B50: CONEXIÓN APROBADA | C50: T7068 | E50: SOLAR | F50: 20 | G50: 8 | H50: 8 | I50: =IFERROR(_xlfn.IFS(B50="SOLICITUD APROBADA",H50,B50="CONEXIÓN APROBADA",H50,B50="EN OPERACIÓN",H50,B50="EN SUBSANACIÓN",H50)," 0 ") -> 8 | J50: 0 | K50: 8
A51: 50 | B51: CONEXIÓN APROBADA | C51: T12441 | E51: SOLAR | F51: 5 | G51: 5 | H51: 5 | I51: =IFERROR(_xlfn.IFS(B51="SOLICITUD APROBADA",H51,B51="CONEXIÓN APROBADA",H51,B51="EN OPERACIÓN",H51,B51="EN SUBSANACIÓN",H51)," 0 ") -> 5 | J51: 0 | K51: 5
A52: 51 | B52: CONEXIÓN APROBADA | C52: T7649 | E52: SOLAR | F52: 5 | G52: 5 | H52: 5 | I52: =IFERROR(_xlfn.IFS(B52="SOLICITUD APROBADA",H52,B52="CONEXIÓN APROBADA",H52,B52="EN OPERACIÓN",H52,B52="EN SUBSANACIÓN",H52)," 0 ") -> 5 | J52: 0 | K52: 5
A53: 52 | B53: CONEXIÓN APROBADA | C53: T16354 | E53: SOLAR | F53: 5 | G53: 5 | H53: 5 | I53: =IFERROR(_xlfn.IFS(B53="SOLICITUD APROBADA",H53,B53="CONEXIÓN APROBADA",H53,B53="EN OPERACIÓN",H53,B53="EN SUBSANACIÓN",H53)," 0 ") -> 5 | J53: 0 | K53: 5
A54: 53 | B54: CONEXIÓN APROBADA | C54: T12845 | E54: SOLAR | F54: 5 | G54: 5 | H54: 5 | I54: =IFERROR(_xlfn.IFS(B54="SOLICITUD APROBADA",H54,B54="CONEXIÓN APROBADA",H54,B54="EN OPERACIÓN",H54,B54="EN SUBSANACIÓN",H54)," 0 ") -> 5 | J54: 0 | K54: 5
A55: 54 | B55: CONEXIÓN APROBADA | C55: T11758 | E55: SOLAR | F55: 5 | G55: 5 | H55: 5 | I55: =IFERROR(_xlfn.IFS(B55="SOLICITUD APROBADA",H55,B55="CONEXIÓN APROBADA",H55,B55="EN OPERACIÓN",H55,B55="EN SUBSANACIÓN",H55)," 0 ") -> 5 | J55: 0 | K55: 5
A56: 55 | B56: CONEXIÓN APROBADA | C56: T8756 | E56: SOLAR | F56: 30 | G56: 30 | H56: 30 | I56: =IFERROR(_xlfn.IFS(B56="SOLICITUD APROBADA",H56,B56="CONEXIÓN APROBADA",H56,B56="EN OPERACIÓN",H56,B56="EN SUBSANACIÓN",H56)," 0 ") -> 30 | J56: 0 | K56: 30

Sheet LISTAS (hidden)
A1: ESTADOS | B1: TIPO DE TECNOLOGÍA UTILIZADA | D1: biomasa, los pequeños aprovechamientos
A2: SOLICITUD APROBADA | B2: BIOMASA | D2: hidroeléctricos, la eólica, la geotérmica, la solar, los mares, hidrógeno verde y
A3: CONEXIÓN APROBADA | B3: PCH | D3: azul,
A4: CONEXIÓN RECHAZADA | B4: EOLICA
A5: SOLICITANTE DESISTE | B5: GEOTERMICA
A6: EN OPERACIÓN | B6: SOLAR
A7: EN CONSTRUCCIÓN | B7: MARES
A8: EN SUBSANACIÓN | B8: HIDROGENO VERDE
B9: HIDROGENO AZUL
